Workbook

Sheet TOT-0416
B2: ANEXO IV al Memorandum D.T.E.E. N° 294 /2017
A4: ENTE NACIONAL REGULADOR
A5: DE LA ELECTRICIDAD
B7: SISTEMA DE TRANSPORTE DE ENERGÍA ELÉCTRICA POR DISTRIBUCIÓN TRONCAL
B9: TRANSNEA S.A.
B11: TOTAL DE PENALIZACIONES
B13: 2
B14: Desde el 01 al 30 de abril de 2016
B16: Sanciones duplicadas por tasa de falla > 4 Sal. x año/100km.
C18: 1.- | D18: LÍNEAS
D20: 1.1.- | E20: Equipamiento propio | I20: ='LI-04 (1)'!AA43 -> 582958.64
D21: 1.2.- | E21: Transportista Independiente D.P.E.C. | I21: ='LI-DPEC-04 (1)'!AA44 -> 17591.82
D22: 1.3.- | E22: Transportista Independiente ENECOR | I22: ='LI-ENECOR-04 (1)'!AA44 -> 2231.9
C24: 2.- | D24: CONEXIÓN
D26: 2.1.- | E26: Transformación
E27: 2.1.1.- | F27: Equipamiento propio | I27: =+'T-04 (2)'!AC44 -> 51113.73
D28: 2.2.- | E28: Salidas
E29: 2.2.1.- | F29: Equipamiento propio | I29: ='SA-04 (1)'!V43 -> 2453.24
C31: 3.- | D31: SUPERVISIÓN
D33: 3.1.- | E33: Transportista Independiente D.P.E.C. | I33: ='SUP-DPEC'!I63 -> 4396.636466
D34: 3.2.- | E34: Transportista Independiente ENECOR | I34: ='SUP-ENECOR'!I44 -> 517.9738896
F37: TOTAL | G37: =SUM(I20:I34) -> 661263.9404

Sheet LI-04 (1)
B2: =+'TOT-0416'!B2 -> ANEXO IV al Memorandum D.T.E.E. N° 294 /2017
A4: ENTE NACIONAL REGULADOR
A5: DE LA ELECTRICIDAD
F8: SISTEMA DE TRANSPORTE DE ENERGÍA ELÉCTRICA POR DISTRIBUCIÓN TRONCAL - TRANSNEA S.A.
F10: 1.- LÍNEAS
F12: 1.1.- Líneas propias
B14: =+'TOT-0416'!B14 -> Desde el 01 al 30 de abril de 2016
F16: $/100 km-h : LÍNEAS 220 kV | G16: 360.925
F17: $/100 km-h : LÍNEAS 132 kV | G17: 345.493 | K17: FACTOR DE PENALIZACIÓN K = | L17: =30*'TOT-0416'!B13 -> 60 | M17: =IF(L17=30," ",IF(L17=60,"Coeficiente duplicado por tasa de falla >4 Sal. x año/100 km.","REVISAR COEFICIENTE")) -> Coeficiente duplicado por tasa de falla >4 Sal. x año/100 km.
F18: $/100 km-h : LÍNEAS 33 kV | G18: 345.493
C19: 3 | D19: 4 | E19: 5 | F19: 6 | G19: 7 | H19: 8 | I19: 9 | J19: 10 | K19: 11 | L19: 12 | M19: 13 | N19: 14 | O19: 15 | P19: 16 | Q19: 17 | R19: 18 | S19: 19 | T19: 20 | U19: 21 | V19: 22 | W19: 23 | X19: 24 | Y19: 25 | Z19: 26 | AA19: 27
C20: N° | D20: INDISP | E20: ID EQUIPO | F20: LÍNEAS | G20: U [kV] | H20: Long. [km] | I20: $/h | J20: Salida | K20: Entrada | L20: Hs. Indisp. | M20: Minutos Indisp. | N20: Tipo Sal.(²) | O20: C.R. % | P20: PENALIZAC. PROGRAM. | Q20: REDUCC. PROGRAM. | R20: PENALIZACIÓN FORZADA Por Salida 1ras. 3 hs. hs. Restantes | U20: REDUCC. FORZADA Por Salida 1ras. 3 hs. hs. Restantes | X20: RESTANTE FORZADA | Y20: REDUCC. RESTANTE | Z20: Informó enTérm. | AA20: TOTAL PENALIZAC.
C23: 1 | D23: 261606 | E23: 748 | F23: STA. CATALINA - RESISTENCIA | G23: 132 | H23: 42 | I23: =IF(H23>25,H23,25)*IF(G23=220,$G$16,IF(G23=132,$G$17,$G$18))/100 -> 145.10706 | J23: 2016-04-01 | K23: 2016-04-30T23:59:59 | L23: =IF(F23="","",(K23-J23)*24) -> 719.9997222 | M23: =IF(F23="","",ROUND((K23-J23)*24*60,0)) -> 43200 | N23: P | O23: =IF(F23="","","--") -> -- | P23: =IF(N23="P",ROUND(M23/60,2)*I23*$L$17*0.01,"--") -> 62686.24992 | Q23: =IF(N23="RP",ROUND(M23/60,2)*I23*$L$17*0.01*O23/100,"--") -> -- | R23: =IF(N23="F",I23*$L$17,"--") -> -- | S23: =IF(AND(M23>10,N23="F"),I23*$L$17*IF(M23>180,3,ROUND(M23/60,2)),"--") -> -- | T23: =IF(AND(N23="F",M23>180),(ROUND(M23/60,2)-3)*I23*$L$17*0.1,"--") -> -- | U23: =IF(N23="R",I23*$L$17*O23/100,"--") -> -- | V23: =IF(AND(M23>10,N23="R"),I23*$L$17*O23/100*IF(M23>180,3,ROUND(M23/60,2)),"--") -> -- | W23: =IF(AND(N23="R",M23>180),(ROUND(M23/60,2)-3)*I23*$L$17*0.1*O23/100,"--") -> -- | X23: =IF(N23="RF",ROUND(M23/60,2)*I23*$L$17*0.1,"--") -> -- | Y23: =IF(N23="RR",ROUND(M23/60,2)*I23*$L$17*0.1*O23/100,"--") -> -- | Z23: SI | AA23: =IF(F23="","",SUM(P23:Y23)*IF(Z23="SI",1,2)) -> 62686.24992
C24: 2 | D24: 291181 | E24: 946 | F24: PASO DE LOS LIBRES - URUGUAYANA | G24: 132 | H24: 3.900000095 | I24: =IF(H24>25,H24,25)*IF(G24=220,$G$16,IF(G24=132,$G$17,$G$18))/100 -> 86.37325 | J24: 2016-04-01 | K24: 2016-04-30T23:59:59 | L24: =IF(F24="","",(K24-J24)*24) -> 719.9997222 | M24: =IF(F24="","",ROUND((K24-J24)*24*60,0)) -> 43200 | N24: RF | O24: =IF(F24="","","--") -> -- | P24: =IF(N24="P",ROUND(M24/60,2)*I24*$L$17*0.01,"--") -> -- | Q24: =IF(N24="RP",ROUND(M24/60,2)*I24*$L$17*0.01*O24/100,"--") -> -- | R24: =IF(N24="F",I24*$L$17,"--") -> -- | S24: =IF(AND(M24>10,N24="F"),I24*$L$17*IF(M24>180,3,ROUND(M24/60,2)),"--") -> -- | T24: =IF(AND(N24="F",M24>180),(ROUND(M24/60,2)-3)*I24*$L$17*0.1,"--") -> -- | U24: =IF(N24="R",I24*$L$17*O24/100,"--") -> -- | V24: =IF(AND(M24>10,N24="R"),I24*$L$17*O24/100*IF(M24>180,3,ROUND(M24/60,2)),"--") -> -- | W24: =IF(AND(N24="R",M24>180),(ROUND(M24/60,2)-3)*I24*$L$17*0.1*O24/100,"--") -> -- | X24: =IF(N24="RF",ROUND(M24/60,2)*I24*$L$17*0.1,"--") -> 373132.44 | Y24: =IF(N24="RR",ROUND(M24/60,2)*I24*$L$17*0.1*O24/100,"--") -> -- | Z24: SI | AA24: =IF(F24="","",SUM(P24:Y24)*IF(Z24="SI",1,2)) -> 373132.44
C25: 3 | D25: 300812 | E25: 746 | F25: MONTE CASEROS - CHAJARÍ | G25: 132 | H25: 74.5 | I25: 257.392285 | J25: 2016-04-02T08:58:00 | K25: 2016-04-02T18:32:00 | L25: 9.566666667 | M25: 574 | N25: F | O25: -- | P25: -- | Q25: -- | R25: 15443.5371 | S25: 46330.6113 | T25: 10146.40387 | U25: -- | V25: -- | W25: -- | X25: -- | Y25: -- | Z25: SI | AA25: 71920.55227
C26: 4 | D26: 301070 | E26: 5394 | F26: STA. CATALINA - COLONIA BRUGNE - B. VISTA | G26: 132 | H26: 121 | I26: 418.04653 | J26: 2016-04-09T00:10:00 | K26: 2016-04-09T00:36:00 | L26: 0.4333333333 | M26: 26 | N26: F | O26: -- | P26: -- | Q26: -- | R26: 25082.7918 | S26: 10785.60047 | T26: -- | U26: -- | V26: -- | W26: -- | X26: -- | Y26: -- | Z26: SI | AA26: 35868.39227
C27: 5 | D27: 301082 | E27: 5047 | F27: GRAN FORMOSA - CLORINDA 1 | G27: 132 | H27: 103.5 | I27: 357.585255 | J27: 2016-04-09T07:44:00 | K27: 2016-04-09T07:52:00 | L27: 0.1333333332 | M27: 8 | N27: F | O27: -- | P27: -- | Q27: -- | R27: 21455.1153 | S27: -- | T27: -- | U27: -- | V27: -- | W27: -- | X27: -- | Y27: -- | Z27: SI | AA27: 21455.1153
C28: 6 | D28: 301410 | E28: 5394 | F28: STA. CATALINA - COLONIA BRUGNE - B. VISTA | G28: 132 | H28: 121 | I28: 418.04653 | J28: 2016-04-17T08:30:00 | K28: 2016-04-17T10:07:00 | L28: 1.616666667 | M28: 97 | N28: P | O28: -- | P28: 406.3412272 | Q28: -- | R28: -- | S28: -- | T28: -- | U28: -- | V28: -- | W28: -- | X28: -- | Y28: -- | Z28: SI | AA28: 406.3412272
C29: 7 | D29: 301912 | E29: 5034 | F29: VIRASORO - S. TOME | G29: 132 | H29: 59 | I29: 203.84087 | J29: 2016-04-25T02:11:00 | K29: 2016-04-25T02:37:00 | L29: 0.4333333333 | M29: 26 | N29: F | O29: -- | P29: -- | Q29: -- | R29: 12230.4522 | S29: 5259.094446 | T29: -- | U29: -- | V29: -- | W29: -- | X29: -- | Y29: -- | Z29: SI | AA29: 17489.54665
I30: 86.37325 | O30: =IF(F30="","","--") ->  | P30: =IF(N30="P",ROUND(M30/60,2)*I30*$L$17*0.01,"--") -> -- | Q30: =IF(N30="RP",ROUND(M30/60,2)*I30*$L$17*0.01*O30/100,"--") -> -- | R30: =IF(N30="F",I30*$L$17,"--") -> -- | S30: =IF(AND(M30>10,N30="F"),I30*$L$17*IF(M30>180,3,ROUND(M30/60,2)),"--") -> -- | T30: =IF(AND(N30="F",M30>180),(ROUND(M30/60,2)-3)*I30*$L$17*0.1,"--") -> -- | U30: =IF(N30="R",I30*$L$17*O30/100,"--") -> -- | V30: =IF(AND(M30>10,N30="R"),I30*$L$17*O30/100*IF(M30>180,3,ROUND(M30/60,2)),"--") -> -- | W30: =IF(AND(N30="R",M30>180),(ROUND(M30/60,2)-3)*I30*$L$17*0.1*O30/100,"--") -> -- | X30: =IF(N30="RF",ROUND(M30/60,2)*I30*$L$17*0.1,"--") -> -- | Y30: =IF(N30="RR",ROUND(M30/60,2)*I30*$L$17*0.1*O30/100,"--") -> -- | Z30: =IF(F30="","","SI") -> 
I31: 86.37325 | P31: -- | Q31: -- | R31: -- | S31: -- | T31: -- | U31: -- | V31: -- | W31: -- | X31: -- | Y31: --
I32: 86.37325 | P32: -- | Q32: -- | R32: -- | S32: -- | T32: -- | U32: -- | V32: -- | W32: -- | X32: -- | Y32: --
I33: 86.37325 | P33: -- | Q33: -- | R33: -- | S33: -- | T33: -- | U33: -- | V33: -- | W33: -- | X33: -- | Y33: --
I34: 86.37325 | P34: -- | Q34: -- | R34: -- | S34: -- | T34: -- | U34: -- | V34: -- | W34: -- | X34: -- | Y34: --
I35: 86.37325 | P35: -- | Q35: -- | R35: -- | S35: -- | T35: -- | U35: -- | V35: -- | W35: -- | X35: -- | Y35: --
I36: 86.37325 | P36: -- | Q36: -- | R36: -- | S36: -- | T36: -- | U36: -- | V36: -- | W36: -- | X36: -- | Y36: -- | Z36: =IF(F36="","","SI") -> 
I37: 86.37325 | P37: -- | Q37: -- | R37: -- | S37: -- | T37: -- | U37: -- | V37: -- | W37: -- | X37: -- | Y37: --
I38: 86.37325 | P38: -- | Q38: -- | R38: -- | S38: -- | T38: -- | U38: -- | V38: -- | W38: -- | X38: -- | Y38: --
I39: 86.37325 | P39: -- | Q39: -- | R39: -- | S39: -- | T39: -- | U39: -- | V39: -- | W39: -- | X39: -- | Y39: --
I40: =IF(H40>25,H40,25)*IF(G40=220,$G$16,IF(G40=132,$G$17,$G$18))/100 -> 86.37325 | L40: =IF(F40="","",(K40-J40)*24) ->  | M40: =IF(F40="","",ROUND((K40-J40)*24*60,0)) ->  | O40: =IF(F40="","","--") ->  | P40: =IF(N40="P",ROUND(M40/60,2)*I40*$L$17*0.01,"--") -> -- | Q40: =IF(N40="RP",ROUND(M40/60,2)*I40*$L$17*0.01*O40/100,"--") -> -- | R40: =IF(N40="F",I40*$L$17,"--") -> -- | S40: =IF(AND(M40>10,N40="F"),I40*$L$17*IF(M40>180,3,ROUND(M40/60,2)),"--") -> -- | T40: =IF(AND(N40="F",M40>180),(ROUND(M40/60,2)-3)*I40*$L$17*0.1,"--") -> -- | U40: =IF(N40="R",I40*$L$17*O40/100,"--") -> -- | V40: =IF(AND(M40>10,N40="R"),I40*$L$17*O40/100*IF(M40>180,3,ROUND(M40/60,2)),"--") -> -- | W40: =IF(AND(N40="R",M40>180),(ROUND(M40/60,2)-3)*I40*$L$17*0.1*O40/100,"--") -> -- | X40: =IF(N40="RF",ROUND(M40/60,2)*I40*$L$17*0.1,"--") -> -- | Y40: =IF(N40="RR",ROUND(M40/60,2)*I40*$L$17*0.1*O40/100,"--") -> -- | Z40: =IF(F40="","","SI") -> 
I41: =IF(H41>25,H41,25)*IF(G41=220,$G$16,IF(G41=132,$G$17,$G$18))/100 -> 86.37325 | L41: =IF(F41="","",(K41-J41)*24) ->  | M41: =IF(F41="","",ROUND((K41-J41)*24*60,0)) ->  | O41: =IF(F41="","","--") ->  | P41: =IF(N41="P",ROUND(M41/60,2)*I41*$L$17*0.01,"--") -> -- | Q41: =IF(N41="RP",ROUND(M41/60,2)*I41*$L$17*0.01*O41/100,"--") -> -- | R41: =IF(N41="F",I41*$L$17,"--") -> -- | S41: =IF(AND(M41>10,N41="F"),I41*$L$17*IF(M41>180,3,ROUND(M41/60,2)),"--") -> -- | T41: =IF(AND(N41="F",M41>180),(ROUND(M41/60,2)-3)*I41*$L$17*0.1,"--") -> -- | U41: =IF(N41="R",I41*$L$17*O41/100,"--") -> -- | V41: =IF(AND(M41>10,N41="R"),I41*$L$17*O41/100*IF(M41>180,3,ROUND(M41/60,2)),"--") -> -- | W41: =IF(AND(N41="R",M41>180),(ROUND(M41/60,2)-3)*I41*$L$17*0.1*O41/100,"--") -> -- | X41: =IF(N41="RF",ROUND(M41/60,2)*I41*$L$17*0.1,"--") -> -- | Y41: =IF(N41="RR",ROUND(M41/60,2)*I41*$L$17*0.1*O41/100,"--") -> -- | Z41: =IF(F41="","","SI") -> 
C43: (²) | D43: P - PROGRAMADA ; F - FORZADA ; RF - RESTANTE FORZADA | P43: =SUM(P21:P42) -> 63092.59115 | Q43: =SUM(Q21:Q42) -> 0 | R43: =SUM(R21:R42) -> 74211.8964 | S43: 62375.30622 | T43: 10146.40387 | U43: 0 | V43: 0 | W43: 0 | X43: 373132.44 | Y43: 0 | AA43: =ROUND(SUM(AA21:AA42),2) -> 582958.64

Sheet LI-DPEC-04 (1)
B2: ='TOT-0416'!B2 -> ANEXO IV al Memorandum D.T.E.E. N° 294 /2017
A4: ENTE NACIONAL REGULADOR
A5: DE LA ELECTRICIDAD
F8: SISTEMA DE TRANSPORTE DE ENERGÍA ELÉCTRICA POR DISTRIBUCIÓN TRONCAL - TRANSNEA S.A.
F10: 1.2.-Transportista Independiente - Dirección Provincial de Energía de Corrientes (D.P.E.C.)
B12: ='TOT-0416'!B14 -> Desde el 01 al 30 de abril de 2016
F15: $/100 km-h : LÍNEAS 220 kV | G15: -
F16: $/100 km-h : LÍNEAS 132 kV | G16: 145.147 | K16: FACTOR DE PENALIZACIÓN K = | L16: =30*'TOT-0416'!B13 -> 60 | M16: =IF(L16=30," ",IF(L16=60,"Coeficiente duplicado por tasa de falla >4 Sal. x año/100 km.","REVISAR COEFICIENTE")) -> Coeficiente duplicado por tasa de falla >4 Sal. x año/100 km.
F17: $/100 km-h : LÍNEAS 66 kV | G17: -
C19: 3 | D19: 4 | E19: 5 | F19: 6 | G19: 7 | H19: 8 | I19: 9 | J19: 10 | K19: 11 | L19: 12 | M19: 13 | N19: 14 | O19: 15 | P19: 16 | Q19: 17 | R19: 18 | S19: 19 | T19: 20 | U19: 21 | V19: 22 | W19: 23 | X19: 24 | Y19: 25 | Z19: 26 | AA19: 27
C20: N° | D20: INDISP | E20: ID EQUIPO | F20: LÍNEAS | G20: U [kV] | H20: Long. [km] | I20: $/h | J20: Salida | K20: Entrada | L20: Hs. Indisp. | M20: Minutos Indisp. | N20: Tipo Sal.(²) | O20: C.R. % | P20: PENALIZAC. PROGRAM. | Q20: REDUCC. PROGRAM. | R20: PENALIZACIÓN FORZADA Por Salida 1ras. 3 hs. hs. Restantes | U20: REDUCC. FORZADA Por Salida 1ras. 3 hs. hs. Restantes | X20: RESTANTE FORZADA | Y20: REDUCC. RESTANTE | Z20: Informó enTérm. | AA20: TOTAL PENALIZAC.
C23: 42 | D23: 301066 | E23: 1001 | F23: PASO DE LOS LIBRES - MONTE CASEROS | G23: 132 | H23: 101 | I23: =IF(H23>25,H23,25)*IF(G23=220,$G$15,IF(G23=132,$G$16,$G$17))/100 -> 146.59847 | J23: 2016-04-06T21:16:00 | K23: 2016-04-06T21:21:00 | L23: =IF(F23="","",(K23-J23)*24) -> 0.08333333326 | M23: =IF(F23="","",ROUND((K23-J23)*24*60,0)) -> 5 | N23: F | O23: =IF(F23="","","--") -> -- | P23: =IF(N23="P",ROUND(M23/60,2)*I23*$L$16*0.01,"--") -> -- | Q23: =IF(N23="RP",ROUND(M23/60,2)*I23*$L$16*0.01*O23/100,"--") -> -- | R23: =IF(N23="F",I23*$L$16,"--") -> 8795.9082 | S23: =IF(AND(M23>10,N23="F"),I23*$L$16*IF(M23>180,3,ROUND(M23/60,2)),"--") -> -- | T23: =IF(AND(N23="F",M23>180),(ROUND(M23/60,2)-3)*I23*$L$16*0.1,"--") -> -- | U23: =IF(N23="R",I23*$L$16*O23/100,"--") -> -- | V23: =IF(AND(M23>10,N23="R"),I23*$L$16*O23/100*IF(M23>180,3,ROUND(M23/60,2)),"--") -> -- | W23: =IF(AND(N23="R",M23>180),(ROUND(M23/60,2)-3)*I23*$L$16*0.1*O23/100,"--") -> -- | X23: =IF(N23="RF",ROUND(M23/60,2)*I23*$L$16*0.1,"--") -> -- | Y23: =IF(N23="RR",ROUND(M23/60,2)*I23*$L$16*0.1*O23/100,"--") -> -- | Z23: SI | AA23: =IF(F23="","",SUM(P23:Y23)*IF(Z23="SI",1,2)) -> 8795.9082
C24: 43 | D24: 301384 | E24: 1001 | F24: PASO DE LOS LIBRES - MONTE CASEROS | G24: 132 | H24: 101 | I24: =IF(H24>25,H24,25)*IF(G24=220,$G$15,IF(G24=132,$G$16,$G$17))/100 -> 146.59847 | J24: 2016-04-13T05:20:00 | K24: 2016-04-13T05:27:00 | L24: 0.1166666667 | M24: =IF(F24="","",ROUND((K24-J24)*24*60,0)) -> 7 | N24: F | O24: -- | P24: -- | Q24: -- | R24: =IF(N24="F",I24*$L$16,"--") -> 8795.9082 | S24: -- | T24: -- | U24: -- | V24: -- | W24: -- | X24: =IF(N24="RF",ROUND(M24/60,2)*I24*$L$16*0.1,"--") -> -- | Y24: =IF(N24="RR",ROUND(M24/60,2)*I24*$L$16*0.1*O24/100,"--") -> -- | Z24: SI | AA24: =IF(F24="","",SUM(P24:Y24)*IF(Z24="SI",1,2)) -> 8795.9082
P25: -- | Q25: -- | R25: -- | S25: -- | T25: -- | U25: -- | V25: -- | W25: -- | X25: -- | Y25: -- | Z25: =IF(F25="","","SI") -> 
P26: -- | Q26: -- | R26: -- | S26: -- | T26: -- | U26: -- | V26: -- | W26: -- | X26: -- | Y26: --
P27: -- | Q27: -- | R27: -- | S27: -- | T27: -- | U27: -- | V27: -- | W27: -- | X27: -- | Y27: --
P28: -- | Q28: -- | R28: -- | S28: -- | T28: -- | U28: -- | V28: -- | W28: -- | X28: -- | Y28: --
P29: -- | Q29: -- | R29: -- | S29: -- | T29: -- | U29: -- | V29: -- | W29: -- | X29: -- | Y29: --
P30: -- | Q30: -- | R30: -- | S30: -- | T30: -- | U30: -- | V30: -- | W30: -- | X30: -- | Y30: --
P31: -- | Q31: -- | R31: -- | S31: -- | T31: -- | U31: -- | V31: -- | W31: -- | X31: -- | Y31: --
P32: -- | Q32: -- | R32: -- | S32: -- | T32: -- | U32: -- | V32: -- | W32: -- | X32: -- | Y32: --
P33: -- | Q33: -- | R33: -- | S33: -- | T33: -- | U33: -- | V33: -- | W33: -- | X33: -- | Y33: --
P34: -- | Q34: -- | R34: -- | S34: -- | T34: -- | U34: -- | V34: -- | W34: -- | X34: -- | Y34: --
P35: -- | Q35: -- | R35: -- | S35: -- | T35: -- | U35: -- | V35: -- | W35: -- | X35: -- | Y35: --
P36: -- | Q36: -- | R36: -- | S36: -- | T36: -- | U36: -- | V36: -- | W36: -- | X36: -- | Y36: --
P37: -- | Q37: -- | R37: -- | S37: -- | T37: -- | U37: -- | V37: -- | W37: -- | X37: -- | Y37: --
P38: -- | Q38: -- | R38: -- | S38: -- | T38: -- | U38: -- | V38: -- | W38: -- | X38: -- | Y38: --
P39: -- | Q39: -- | R39: -- | S39: -- | T39: -- | U39: -- | V39: -- | W39: -- | X39: -- | Y39: --
I40: =IF(H40>25,H40,25)*IF(G40=220,$G$15,IF(G40=132,$G$16,$G$17))/100 ->  | M40: =IF(F40="","",ROUND((K40-J40)*24*60,0)) ->  | P40: -- | Q40: -- | R40: -- | S40: -- | T40: -- | U40: -- | V40: -- | W40: -- | X40: =IF(N40="RF",ROUND(M40/60,2)*I40*$L$16*0.1,"--") -> -- | Y40: =IF(N40="RR",ROUND(M40/60,2)*I40*$L$16*0.1*O40/100,"--") -> --
I41: =IF(H41>25,H41,25)*IF(G41=220,$G$15,IF(G41=132,$G$16,$G$17))/100 ->  | M41: =IF(F41="","",ROUND((K41-J41)*24*60,0)) ->  | P41: -- | Q41: -- | R41: -- | S41: -- | T41: -- | U41: -- | V41: -- | W41: -- | X41: =IF(N41="RF",ROUND(M41/60,2)*I41*$L$16*0.1,"--") -> -- | Y41: =IF(N41="RR",ROUND(M41/60,2)*I41*$L$16*0.1*O41/100,"--") -> --
I42: =IF(H42>25,H42,25)*IF(G42=220,$G$15,IF(G42=132,$G$16,$G$17))/100 ->  | M42: =IF(F42="","",ROUND((K42-J42)*24*60,0)) ->  | P42: -- | Q42: -- | R42: -- | S42: -- | T42: -- | U42: -- | V42: -- | W42: -- | X42: =IF(N42="RF",ROUND(M42/60,2)*I42*$L$16*0.1,"--") -> -- | Y42: =IF(N42="RR",ROUND(M42/60,2)*I42*$L$16*0.1*O42/100,"--") -> --
C44: (²) | D44: F - FORZADA | P44: =SUM(P21:P43) -> 0 | Q44: 0 | R44: 17591.8164 | S44: 0 | T44: 0 | U44: 0 | V44: 0 | W44: 0 | X44: 0 | Y44: 0 | AA44: =ROUND(SUM(AA21:AA43),2) -> 17591.82

Sheet LI-ENECOR-04 (1)
B2: ='TOT-0416'!B2 -> ANEXO IV al Memorandum D.T.E.E. N° 294 /2017
A4: ENTE NACIONAL REGULADOR
A5: DE LA ELECTRICIDAD
F8: SISTEMA DE TRANSPORTE DE ENERGÍA ELÉCTRICA POR DISTRIBUCIÓN TRONCAL - TRANSNEA S.A.
F10: 1.2.-Transportista Independiente - Energía de Corrientes S.A. (E.N.E.C.O.R. S.A.)
B12: ='TOT-0416'!B14 -> Desde el 01 al 30 de abril de 2016
F15: $/100 km-h : LÍNEAS 220 kV | G15: -
F16: $/100 km-h : LÍNEAS 132 kV | G16: 112.722 | K16: FACTOR DE PENALIZACIÓN K = | L16: =30*'TOT-0416'!B13 -> 60 | M16: =IF(L16=30," ",IF(L16=60,"Coeficiente duplicado por tasa de falla >4 Sal. x año/100 km.","REVISAR COEFICIENTE")) -> Coeficiente duplicado por tasa de falla >4 Sal. x año/100 km.
F17: $/100 km-h : LÍNEAS 66 kV | G17: -
C19: 3 | D19: 4 | E19: 5 | F19: 6 | G19: 7 | H19: 8 | I19: 9 | J19: 10 | K19: 11 | L19: 12 | M19: 13 | N19: 14 | O19: 15 | P19: 16 | Q19: 17 | R19: 18 | S19: 19 | T19: 20 | U19: 21 | V19: 22 | W19: 23 | X19: 24 | Y19: 25 | Z19: 26 | AA19: 27
C20: N° | D20: INDISP | E20: ID EQUIPO | F20: LÍNEAS | G20: U [kV] | H20: Long. [km] | I20: $/h | J20: Salida | K20: Entrada | L20: Hs. Indisp. | M20: Minutos Indisp. | N20: Tipo Sal.(²) | O20: C.R. % | P20: PENALIZAC. PROGRAM. | Q20: REDUCC. PROGRAM. | R20: PENALIZACIÓN FORZADA Por Salida 1ras. 3 hs. hs. Restantes | U20: REDUCC. FORZADA Por Salida 1ras. 3 hs. hs. Restantes | X20: RESTANTE FORZADA | Y20: REDUCC. RESTANTE | Z20: Informó enTérm. | AA20: TOTAL PENALIZAC.
C23: 44 | D23: 301664 | E23: 2868 | F23: S. CATALINA - P. DE LA PATRIA 2 | G23: 132 | H23: 20.8 | I23: =IF(H23>25,H23,25)*IF(G23=220,$G$15,IF(G23=132,$G$16,$G$17))/100 -> 28.1805 | J23: 2016-04-18T07:41:00 | K23: 2016-04-18T08:00:00 | L23: =IF(F23="","",(K23-J23)*24) -> 0.3166666667 | M23: =IF(F23="","",ROUND((K23-J23)*24*60,0)) -> 19 | N23: F | O23: =IF(F23="","","--") -> -- | P23: =IF(N23="P",ROUND(M23/60,2)*I23*$L$16*0.01,"--") -> -- | Q23: =IF(N23="RP",ROUND(M23/60,2)*I23*$L$16*0.01*O23/100,"--") -> -- | R23: =IF(N23="F",I23*$L$16,"--") -> 1690.83 | S23: =IF(AND(M23>10,N23="F"),I23*$L$16*IF(M23>180,3,ROUND(M23/60,2)),"--") -> 541.0656 | T23: =IF(AND(N23="F",M23>180),(ROUND(M23/60,2)-3)*I23*$L$16*0.1,"--") -> -- | U23: =IF(N23="R",I23*$L$16*O23/100,"--") -> -- | V23: =IF(AND(M23>10,N23="R"),I23*$L$16*O23/100*IF(M23>180,3,ROUND(M23/60,2)),"--") -> -- | W23: =IF(AND(N23="R",M23>180),(ROUND(M23/60,2)-3)*I23*$L$16*0.1*O23/100,"--") -> -- | X23: =IF(N23="RF",ROUND(M23/60,2)*I23*$L$16*0.1,"--") -> -- | Y23: =IF(N23="RR",ROUND(M23/60,2)*I23*$L$16*0.1*O23/100,"--") -> -- | Z23: =IF(F23="","","SI") -> SI | AA23: =IF(F23="","",SUM(P23:Y23)*IF(Z23="SI",1,2)) -> 2231.8956
P24: -- | Q24: -- | R24: -- | S24: -- | T24: -- | U24: -- | V24: -- | W24: -- | X24: -- | Y24: --
P25: -- | Q25: -- | R25: -- | S25: -- | T25: -- | U25: -- | V25: -- | W25: -- | X25: -- | Y25: --
P26: -- | Q26: -- | R26: -- | S26: -- | T26: -- | U26: -- | V26: -- | W26: -- | X26: -- | Y26: --
P27: -- | Q27: -- | R27: -- | S27: -- | T27: -- | U27: -- | V27: -- | W27: -- | X27: -- | Y27: --
P28: -- | Q28: -- | R28: -- | S28: -- | T28: -- | U28: -- | V28: -- | W28: -- | X28: -- | Y28: --
P29: -- | Q29: -- | R29: -- | S29: -- | T29: -- | U29: -- | V29: -- | W29: -- | X29: -- | Y29: --
P30: -- | Q30: -- | R30: -- | S30: -- | T30: -- | U30: -- | V30: -- | W30: -- | X30: -- | Y30: --
P31: -- | Q31: -- | R31: -- | S31: -- | T31: -- | U31: -- | V31: -- | W31: -- | X31: -- | Y31: --
P32: -- | Q32: -- | R32: -- | S32: -- | T32: -- | U32: -- | V32: -- | W32: -- | X32: -- | Y32: --
P33: -- | Q33: -- | R33: -- | S33: -- | T33: -- | U33: -- | V33: -- | W33: -- | X33: -- | Y33: --
P34: -- | Q34: -- | R34: -- | S34: -- | T34: -- | U34: -- | V34: -- | W34: -- | X34: -- | Y34: --
P35: -- | Q35: -- | R35: -- | S35: -- | T35: -- | U35: -- | V35: -- | W35: -- | X35: -- | Y35: --
P36: -- | Q36: -- | R36: -- | S36: -- | T36: -- | U36: -- | V36: -- | W36: -- | X36: -- | Y36: --
P37: -- | Q37: -- | R37: -- | S37: -- | T37: -- | U37: -- | V37: -- | W37: -- | X37: -- | Y37: --
P38: -- | Q38: -- | R38: -- | S38: -- | T38: -- | U38: -- | V38: -- | W38: -- | X38: -- | Y38: --
P39: -- | Q39: -- | R39: -- | S39: -- | T39: -- | U39: -- | V39: -- | W39: -- | X39: -- | Y39: --
P40: -- | Q40: -- | R40: -- | S40: -- | T40: -- | U40: -- | V40: -- | W40: -- | X40: -- | Y40: --
P41: -- | Q41: -- | R41: -- | S41: -- | T41: -- | U41: -- | V41: -- | W41: -- | X41: -- | Y41: --
P42: -- | Q42: -- | R42: -- | S42: -- | T42: -- | U42: -- | V42: -- | W42: -- | X42: -- | Y42: --
C44: (²) | D44: F - FORZADA | P44: =SUM(P21:P43) -> 0 | Q44: 0 | R44: 1690.83 | S44: 541.0656 | T44: 0 | U44: 0 | V44: 0 | W44: 0 | X44: 0 | Y44: 0 | AA44: =ROUND(SUM(AA21:AA43),2) -> 2231.9

Sheet T-04 (1)
B2: =+'TOT-0416'!B2 -> ANEXO IV al Memorandum D.T.E.E. N° 294 /2017
A4: ENTE NACIONAL REGULADOR
A5: DE LA ELECTRICIDAD
F8: SISTEMA DE TRANSPORTE DE ENERGÍA ELÉCTRICA POR DISTRIBUCIÓN TRONCAL - TRANSNEA S.A.
F10: 2.- CONEXIÓN
F12: 2.1.- Transformación
B14: =+'TOT-0416'!B14 -> Desde el 01 al 30 de abril de 2016
F16: Por Transformador [$ / h - MVA] = | I16: 1.235
F17: Coeficiente de penalización por salida forzada = | I17: =30*'TOT-0416'!B13 -> 60 | K17: =IF(I17=30," ",IF(I17=60," Coeficiente duplicado por tasa de falla >4 Sal. x año/100 km."," REVISAR COEFICIENTE")) -> Coeficiente duplicado por tasa de falla >4 Sal. x año/100 km.
C18: 3 | D18: 4 | E18: 5 | F18: 6 | G18: 7 | H18: 8 | I18: 9 | J18: 10 | K18: 11 | L18: 12 | M18: 13 | N18: 14 | O18: 15 | P18: 16 | Q18: 17 | R18: 18 | S18: 19 | T18: 20 | U18: 21 | V18: 22 | W18: 23 | X18: 24 | Y18: 25 | Z18: 26 | AA18: 27 | AB18: 28 | AC18: 29
C19: N° | D19: INDISP | E19: ID EQUIPO | F19: ESTACIÓN TRANSFORMADORA | G19: EQUIPO | H19: POT. [MVA] | I19: U [kV] | J19: $/h | K19: Salida | L19: Entrada | M19: Hs. Indisp. | N19: Mtos. Indisp. | O19: Tipo Sal.(²) | P19: AUT. | Q19: C.R. % | R19: E.N.S. | S19: K (P;ENS) | T19: PENALIZ. PROGRAM. | U19: REDUCC. PROGRAM. | V19: PENALIZACIÓN FORZADA Por Salida hs. Restantes | X19: REDUCC. FORZADA Por Salida hs. Restantes | Z19: RESTANTE FORZADA | AA19: REDUCC. RESTANTE | AB19: Informó enTérm. | AC19: TOTAL PENALIZAC.
C22: 8 | D22: 299125 | E22: 752 | F22: BARRANQUERAS | G22: TRAFO 7 | H22: 30 | I22: 132/33/13,2 | J22: =H22*$I$16 -> 37.05 | K22: 2016-04-01 | L22: 2016-04-13T11:38:00 | M22: =IF(F22="","",(L22-K22)*24) -> 299.6333333 | N22: =IF(F22="","",ROUND((L22-K22)*24*60,0)) -> 17978 | O22: RP | P22: =IF(F22="","",IF(OR(O22="P",O22="RP"),"--","NO")) -> -- | Q22: 50 | R22: =IF(F22="","","NO") -> NO | S22: =$I$17*IF(OR(O22="P",O22="RP"),0.1,1)*IF(R22="SI",1,0.1) -> 0.6 | T22: =IF(O22="P",J22*S22*ROUND(N22/60,2),"--") -> -- | U22: =IF(O22="RP",J22*S22*ROUND(N22/60,2)*Q22/100,"--") -> 3330.38745 | V22: =IF(AND(O22="F",P22="NO"),J22*S22,"--") -> -- | W22: =IF(O22="F",J22*S22*ROUND(N22/60,2),"--") -> -- | X22: =IF(AND(O22="R",P22="NO"),J22*S22*Q22/100,"--") -> -- | Y22: =IF(O22="R",J22*S22*ROUND(N22/60,2)*Q22/100,"--") -> -- | Z22: =IF(O22="RF",J22*S22*ROUND(N22/60,2),"--") -> -- | AA22: =IF(O22="RR",J22*S22*ROUND(N22/60,2)*Q22/100,"--") -> -- | AB22: SI | AC22: =IF(F22="","",SUM(T22:AA22)*IF(AB22="SI",1,2)) -> 3330.38745
C23: 9 | D23: 301048 | E23: 459 | F23: CORRIENTES | G23: TRAFO 3 | H23: 30 | I23: 132/33/13,2 | J23: =H23*$I$16 -> 37.05 | K23: 2016-04-04T15:50:00 | L23: 2016-04-04T16:38:00 | M23: =IF(F23="","",(L23-K23)*24) -> 0.8000000002 | N23: =IF(F23="","",ROUND((L23-K23)*24*60,0)) -> 48 | O23: R | P23: =IF(F23="","",IF(OR(O23="P",O23="RP"),"--","NO")) -> NO | Q23: 60 | R23: SI | S23: =$I$17*IF(OR(O23="P",O23="RP"),0.1,1)*IF(R23="SI",1,0.1) -> 60 | T23: =IF(O23="P",J23*S23*ROUND(N23/60,2),"--") -> -- | U23: =IF(O23="RP",J23*S23*ROUND(N23/60,2)*Q23/100,"--") -> -- | V23: =IF(AND(O23="F",P23="NO"),J23*S23,"--") -> -- | W23: =IF(O23="F",J23*S23*ROUND(N23/60,2),"--") -> -- | X23: =IF(AND(O23="R",P23="NO"),J23*S23*Q23/100,"--") -> 1333.8 | Y23: =IF(O23="R",J23*S23*ROUND(N23/60,2)*Q23/100,"--") -> 1067.04 | Z23: =IF(O23="RF",J23*S23*ROUND(N23/60,2),"--") -> -- | AA23: =IF(O23="RR",J23*S23*ROUND(N23/60,2)*Q23/100,"--") -> -- | AB23: SI | AC23: =IF(F23="","",SUM(T23:AA23)*IF(AB23="SI",1,2)) -> 2400.84
C24: 10 | D24: 301049 | E24: 3625 | F24: CORRIENTES | G24: TRAFO 4 | H24: 50 | I24: 132/33/13,2 | J24: 61.75 | K24: 2016-04-04T15:50:00 | L24: 2016-04-04T16:38:00 | M24: 0.8000000002 | N24: 48 | O24: R | P24: NO | Q24: 60 | R24: SI | S24: 60 | T24: -- | U24: =IF(O24="RP",J24*S24*ROUND(N24/60,2)*Q24/100,"--") -> -- | V24: -- | W24: -- | X24: 2223 | Y24: 1778.4 | Z24: -- | AA24: -- | AB24: SI | AC24: 4001.4
C25: 11 | D25: 301068 | E25: 4204 | F25: MTE. CASEROS | G25: TRAFO 2 | H25: 15 | I25: 132/33/13,2 | J25: 18.525 | K25: 2016-04-06T21:16:00 | L25: 2016-04-06T21:35:00 | M25: 0.3166666667 | N25: 19 | O25: F | P25: NO | Q25: 0,000 | R25: SI | S25: 60 | T25: -- | U25: =IF(O25="RP",J25*S25*ROUND(N25/60,2)*Q25/100,"--") -> -- | V25: 1111.5 | W25: 355.68 | X25: -- | Y25: -- | Z25: -- | AA25: -- | AB25: SI | AC25: 1467.18
C26: 12 | D26: 301383 | E26: 3305 | F26: FORMOSA | G26: TRAFO 1 | H26: 30 | I26: 132/33/13,2 | J26: 37.05 | K26: 2016-04-12T07:09:00 | L26: 2016-04-12T09:35:00 | M26: 2.433333333 | N26: 146 | O26: RP | P26: -- | Q26: 40 | R26: NO | S26: 0.6 | T26: -- | U26: 21.60756 | V26: -- | W26: -- | X26: -- | Y26: -- | Z26: -- | AA26: -- | AB26: SI | AC26: 21.60756
C27: 13 | D27: 301386 | E27: 764 | F27: FORMOSA | G27: TRAFO 3 | H27: 30 | I27: 132/33/13,2 | J27: 37.05 | K27: 2016-04-13T07:27:00 | L27: 2016-04-13T10:15:00 | M27: 2.8 | N27: 168 | O27: RP | P27: -- | Q27: 60 | R27: NO | S27: 0.6 | T27: -- | U27: 37.3464 | V27: -- | W27: -- | X27: -- | Y27: -- | Z27: -- | AA27: -- | AB27: SI | AC27: 37.3464
C28: 14 | D28: 301387 | E28: 750 | F28: BARRANQUERAS | G28: TRAFO 4 | H28: 15 | I28: 132/33/13.2 | J28: 18.525 | K28: 2016-04-13T11:39:00 | L28: 2016-04-13T12:30:00 | M28: 0.85 | N28: 51 | O28: R | P28: NO | Q28: 60 | R28: SI | S28: 60 | T28: -- | U28: -- | V28: -- | W28: -- | X28: 666.9 | Y28: 566.865 | Z28: -- | AA28: -- | AB28: SI | AC28: 1233.765
C29: 15 | D29: 301388 | E29: 2662 | F29: BARRANQUERAS | G29: TRAFO 5 | H29: 15 | I29: 132/33/13,2 | J29: 18.525 | K29: 2016-04-13T11:39:00 | L29: 2016-04-13T12:29:00 | M29: 0.8333333333 | N29: 50 | O29: R | P29: NO | Q29: 60 | R29: SI | S29: 60 | T29: -- | U29: -- | V29: -- | W29: -- | X29: 666.9 | Y29: 553.527 | Z29: -- | AA29: -- | AB29: SI | AC29: 1220.427
C30: 15a | D30: 301388 | E30: 2662 | F30: BARRANQUERAS | G30: TRAFO 5 | H30: 15 | I30: 132/33/13,2 | J30: =H30*$I$16 -> 18.525 | K30: 2016-04-13T12:29:00 | L30: 2016-04-13T16:00:00 | M30: =IF(F30="","",(L30-K30)*24) -> 3.516666667 | N30: =IF(F30="","",ROUND((L30-K30)*24*60,0)) -> 211 | O30: R | P30: =IF(F30="","",IF(OR(O30="P",O30="RP"),"--","NO")) -> NO | Q30: 60 | R30: NO | S30: =$I$17*IF(OR(O30="P",O30="RP"),0.1,1)*IF(R30="SI",1,0.1) -> 6 | T30: =IF(O30="P",J30*S30*ROUND(N30/60,2),"--") -> -- | U30: =IF(O30="RP",J30*S30*ROUND(N30/60,2)*Q30/100,"--") -> -- | V30: =IF(AND(O30="F",P30="NO"),J30*S30,"--") -> -- | W30: =IF(O30="F",J30*S30*ROUND(N30/60,2),"--") -> -- | X30: =IF(AND(O30="R",P30="NO"),J30*S30*Q30/100,"--") -> 66.69 | Y30: =IF(O30="R",J30*S30*ROUND(N30/60,2)*Q30/100,"--") -> 234.7488 | Z30: =IF(O30="RF",J30*S30*ROUND(N30/60,2),"--") -> -- | AA30: =IF(O30="RR",J30*S30*ROUND(N30/60,2)*Q30/100,"--") -> -- | AB30: SI | AC30: =IF(F30="","",SUM(T30:AA30)*IF(AB30="SI",1,2)) -> 301.4388
C31: 16 | D31: 301389 | E31: 752 | F31: BARRANQUERAS | G31: TRAFO 7 | H31: 30 | I31: 132/33/13,2 | J31: 37.05 | K31: 2016-04-13T11:39:00 | L31: 2016-04-13T12:29:00 | M31: 0.8333333333 | N31: 50 | O31: R | P31: NO | Q31: 70 | R31: SI | S31: 60 | T31: -- | U31: -- | V31: -- | W31: -- | X31: 1556.1 | Y31: 1291.563 | Z31: -- | AA31: -- | AB31: SI | AC31: 2847.663
C32: 17 | D32: 301390 | E32: 753 | F32: BARRANQUERAS | G32: TR089 | H32: 30 | I32: 132/33/13,2 | J32: 37.05 | K32: 2016-04-13T11:39:00 | L32: 2016-04-13T12:30:00 | M32: 0.85 | N32: 51 | O32: R | P32: NO | Q32: 60 | R32: SI | S32: 60 | T32: -- | U32: -- | V32: -- | W32: -- | X32: 1333.8 | Y32: 1133.73 | Z32: -- | AA32: -- | AB32: SI | AC32: 2467.53
C33: 18 | D33: 301551 | E33: 752 | F33: BARRANQUERAS | G33: TRAFO 7 | H33: 30 | I33: 132/33/13,2 | J33: 37.05 | K33: 2016-04-13T12:30:00 | L33: 2016-04-27T07:30:00 | M33: 331 | N33: 19860 | O33: RP | P33: -- | Q33: 50 | R33: NO | S33: 0.6 | T33: -- | U33: 3679.065 | V33: -- | W33: -- | X33: -- | Y33: -- | Z33: -- | AA33: -- | AB33: SI | AC33: 3679.065
C34: 19 | D34: 301407 | E34: 1336 | F34: FORMOSA | G34: TRAFO 4 | H34: 30 | I34: 132/33/13.2 | J34: 37.05 | K34: 2016-04-14T07:15:00 | L34: 2016-04-14T09:10:00 | M34: 1.916666667 | N34: 115 | O34: RP | P34: -- | Q34: 60 | R34: NO | S34: 0.6 | T34: -- | U34: 25.60896 | V34: -- | W34: -- | X34: -- | Y34: -- | Z34: -- | AA34: -- | AB34: SI | AC34: 25.60896
C35: 20 | D35: 301408 | E35: 4611 | F35: FORMOSA | G35: TRAFO 5 | H35: 30 | I35: 132/33/13,2 | J35: 37.05 | K35: 2016-04-15T07:23:00 | L35: 2016-04-15T11:25:00 | M35: 4.033333333 | N35: 242 | O35: RP | P35: -- | Q35: 50 | R35: NO | S35: 0.6 | T35: -- | U35: 44.79345 | V35: -- | W35: -- | X35: -- | Y35: -- | Z35: -- | AA35: -- | AB35: SI | AC35: 44.79345
C36: 21 | D36: 301413 | E36: 4204 | F36: MTE. CASEROS | G36: TRAFO 2 | H36: 15 | I36: 132/33/13,2 | J36: 18.525 | K36: 2016-04-17T22:44:00 | L36: 2016-04-17T23:14:00 | M36: 0.4999999999 | N36: 30 | O36: R | P36: NO | Q36: 60 | R36: SI | S36: 60 | T36: -- | U36: -- | V36: -- | W36: -- | X36: 666.9 | Y36: 333.45 | Z36: -- | AA36: -- | AB36: SI | AC36: 1000.35
C37: 22 | D37: 301412 | E37: 769 | F37: MTE.CASER.CTES. | G37: TRAFO 1 | H37: 15 | I37: 132/33/13,2 | J37: 18.525 | K37: 2016-04-17T22:44:00 | L37: 2016-04-17T23:14:00 | M37: 0.4999999999 | N37: 30 | O37: R | P37: NO | Q37: 40 | R37: SI | S37: 60 | T37: -- | U37: -- | V37: -- | W37: -- | X37: 444.6 | Y37: 222.3 | Z37: -- | AA37: -- | AB37: SI | AC37: 666.9
C38: 23 | D38: 301642 | E38: 771 | F38: SANTA CATALINA | G38: TRAFO 1 | H38: 30 | I38: 132/33/13.2 | J38: 37.05 | K38: 2016-04-18T02:02:00 | L38: 2016-04-18T02:31:00 | M38: 0.4833333333 | N38: 29 | O38: F | P38: NO | Q38: 0,000 | R38: SI | S38: 60 | T38: -- | U38: -- | V38: 2223 | W38: 1067.04 | X38: -- | Y38: -- | Z38: -- | AA38: -- | AB38: SI | AC38: 3290.04
C39: 24 | D39: 301643 | E39: 772 | F39: SANTA CATALINA | G39: TRAFO 2 | H39: 30 | I39: 132/33/13,2 | J39: 37.05 | K39: 2016-04-18T02:02:00 | L39: 2016-04-18T02:31:00 | M39: 0.4833333333 | N39: 29 | O39: F | P39: NO | Q39: 0,000 | R39: SI | S39: 60 | T39: -- | U39: -- | V39: 2223 | W39: 1067.04 | X39: -- | Y39: -- | Z39: -- | AA39: -- | AB39: SI | AC39: 3290.04
C40: 25 | D40: 301644 | E40: 773 | F40: SANTA CATALINA | G40: TRAFO 3 | H40: 30 | I40: 132/33/13,2 | J40: 37.05 | K40: 2016-04-18T02:02:00 | L40: 2016-04-18T02:31:00 | M40: =IF(F40="","",(L40-K40)*24) -> 0.4833333333 | N40: =IF(F40="","",ROUND((L40-K40)*24*60,0)) -> 29 | O40: F | P40: NO | Q40: 0,000 | R40: SI | S40: 60 | T40: -- | U40: -- | V40: 2223 | W40: 1067.04 | X40: -- | Y40: -- | Z40: -- | AA40: -- | AB40: SI | AC40: 3290.04
C41: 26 | D41: 301645 | E41: 4072 | F41: SANTA CATALINA | G41: TRAFO 4 | H41: 30 | I41: 132/33/13.2 | J41: 37.05 | K41: 2016-04-18T02:02:00 | L41: 2016-04-18T02:31:00 | M41: =IF(F41="","",(L41-K41)*24) -> 0.4833333333 | N41: =IF(F41="","",ROUND((L41-K41)*24*60,0)) -> 29 | O41: F | P41: NO | Q41: 0,000 | R41: SI | S41: 60 | T41: -- | U41: -- | V41: 2223 | W41: 1067.04 | X41: -- | Y41: -- | Z41: -- | AA41: -- | AB41: SI | AC41: 3290.04
C42: 27 | D42: 301646 | E42: 4719 | F42: SANTA CATALINA | G42: TRAFO 5 | H42: 30 | I42: 132/33/13,2 | J42: 37.05 | K42: 2016-04-18T02:02:00 | L42: 2016-04-18T02:31:00 | M42: =IF(F42="","",(L42-K42)*24) -> 0.4833333333 | N42: =IF(F42="","",ROUND((L42-K42)*24*60,0)) -> 29 | O42: F | P42: NO | Q42: 0,000 | R42: SI | S42: 60 | T42: -- | U42: -- | V42: 2223 | W42: 1067.04 | X42: -- | Y42: -- | Z42: -- | AA42: -- | AB42: =IF(F42="","","SI") -> SI | AC42: 3290.04
C44: (²) | D44: F - FORZADA ; RP - REDUCCIÓN PROGRAMADA ; R - REDUCCIÓN FORZADA | T44: =SUM(T20:T43) -> 0 | U44: =SUM(U20:U43) -> 7138.80882 | V44: 12226.5 | W44: 5690.88 | X44: 8958.69 | Y44: 7181.6238 | Z44: 0 | AA44: 0 | AC44: =ROUND(SUM(AC20:AC43),2) -> 41196.5

Sheet T-04 (2)
B2: =+'TOT-0416'!B2 -> ANEXO IV al Memorandum D.T.E.E. N° 294 /2017
A4: ENTE NACIONAL REGULADOR
A5: DE LA ELECTRICIDAD
F8: SISTEMA DE TRANSPORTE DE ENERGÍA ELÉCTRICA POR DISTRIBUCIÓN TRONCAL - TRANSNEA S.A.
F10: 2.- CONEXIÓN
F12: 2.1.- Transformación
B14: =+'TOT-0416'!B14 -> Desde el 01 al 30 de abril de 2016
F16: Por Transformador [$ / h - MVA] = | I16: 1.235
F17: Coeficiente de penalización por salida forzada = | I17: =30*'TOT-0416'!B13 -> 60 | K17: =IF(I17=30," ",IF(I17=60," Coeficiente duplicado por tasa de falla >4 Sal. x año/100 km."," REVISAR COEFICIENTE")) -> Coeficiente duplicado por tasa de falla >4 Sal. x año/100 km.
C18: 3 | D18: 4 | E18: 5 | F18: 6 | G18: 7 | H18: 8 | I18: 9 | J18: 10 | K18: 11 | L18: 12 | M18: 13 | N18: 14 | O18: 15 | P18: 16 | Q18: 17 | R18: 18 | S18: 19 | T18: 20 | U18: 21 | V18: 22 | W18: 23 | X18: 24 | Y18: 25 | Z18: 26 | AA18: 27 | AB18: 28 | AC18: 29
C19: N° | D19: INDISP | E19: ID EQUIPO | F19: ESTACIÓN TRANSFORMADORA | G19: EQUIPO | H19: POT. [MVA] | I19: U [kV] | J19: $/h | K19: Salida | L19: Entrada | M19: Hs. Indisp. | N19: Mtos. Indisp. | O19: Tipo Sal.(²) | P19: AUT. | Q19: C.R. % | R19: E.N.S. | S19: K (P;ENS) | T19: PENALIZ. PROGRAM. | U19: REDUCC. PROGRAM. | V19: PENALIZACIÓN FORZADA Por Salida hs. Restantes | X19: REDUCC. FORZADA Por Salida hs. Restantes | Z19: RESTANTE FORZADA | AA19: REDUCC. RESTANTE | AB19: Informó enTérm. | AC19: TOTAL PENALIZAC.
AC21: =+'T-04 (1)'!$AC$44 -> 41196.5
C22: 28 | D22: 301665 | E22: 3625 | F22: CORRIENTES | G22: TRAFO 4 | H22: 50 | I22: 132/33/13,2 | J22: =H22*$I$16 -> 61.75 | K22: 2016-04-19T05:25:00 | L22: 2016-04-19T05:29:00 | M22: =IF(F22="","",(L22-K22)*24) -> 0.06666666671 | N22: =IF(F22="","",ROUND((L22-K22)*24*60,0)) -> 4 | O22: R | P22: =IF(F22="","",IF(OR(O22="P",O22="RP"),"--","NO")) -> NO | Q22: 60 | R22: SI | S22: =$I$17*IF(OR(O22="P",O22="RP"),0.1,1)*IF(R22="SI",1,0.1) -> 60 | T22: =IF(O22="P",J22*S22*ROUND(N22/60,2),"--") -> -- | U22: =IF(O22="RP",J22*S22*ROUND(N22/60,2)*Q22/100,"--") -> -- | V22: =IF(AND(O22="F",P22="NO"),J22*S22,"--") -> -- | W22: =IF(O22="F",J22*S22*ROUND(N22/60,2),"--") -> -- | X22: =IF(AND(O22="R",P22="NO"),J22*S22*Q22/100,"--") -> 2223 | Y22: =IF(O22="R",J22*S22*ROUND(N22/60,2)*Q22/100,"--") -> 155.61 | Z22: =IF(O22="RF",J22*S22*ROUND(N22/60,2),"--") -> -- | AA22: =IF(O22="RR",J22*S22*ROUND(N22/60,2)*Q22/100,"--") -> -- | AB22: SI | AC22: =IF(F22="","",SUM(T22:AA22)*IF(AB22="SI",1,2)) -> 2378.61
C23: 29 | D23: 301675 | E23: 3305 | F23: FORMOSA | G23: TRAFO 1 | H23: 30 | I23: 132/33/13,2 | J23: =H23*$I$16 -> 37.05 | K23: 2016-04-20T07:42:00 | L23: 2016-04-20T13:04:00 | M23: =IF(F23="","",(L23-K23)*24) -> 5.366666667 | N23: =IF(F23="","",ROUND((L23-K23)*24*60,0)) -> 322 | O23: RP | P23: =IF(F23="","",IF(OR(O23="P",O23="RP"),"--","NO")) -> -- | Q23: 60 | R23: NO | S23: =$I$17*IF(OR(O23="P",O23="RP"),0.1,1)*IF(R23="SI",1,0.1) -> 0.6 | T23: =IF(O23="P",J23*S23*ROUND(N23/60,2),"--") -> -- | U23: =IF(O23="RP",J23*S23*ROUND(N23/60,2)*Q23/100,"--") -> 71.62506 | V23: =IF(AND(O23="F",P23="NO"),J23*S23,"--") -> -- | W23: =IF(O23="F",J23*S23*ROUND(N23/60,2),"--") -> -- | X23: =IF(AND(O23="R",P23="NO"),J23*S23*Q23/100,"--") -> -- | Y23: =IF(O23="R",J23*S23*ROUND(N23/60,2)*Q23/100,"--") -> -- | Z23: =IF(O23="RF",J23*S23*ROUND(N23/60,2),"--") -> -- | AA23: =IF(O23="RR",J23*S23*ROUND(N23/60,2)*Q23/100,"--") -> -- | AB23: SI | AC23: =IF(F23="","",SUM(T23:AA23)*IF(AB23="SI",1,2)) -> 71.62506
C24: 30 | D24: 301676 | E24: 2662 | F24: BARRANQUERAS | G24: TRAFO 5 | H24: 15 | I24: 132/33/13,2 | J24: 18.525 | K24: 2016-04-22T08:00:00 | L24: 2016-04-22T13:04:00 | M24: 5.066666667 | N24: 304 | O24: P | P24: -- | Q24: 0,000 | R24: NO | S24: 0.6 | T24: 56.35305 | U24: -- | V24: -- | W24: -- | X24: -- | Y24: -- | Z24: -- | AA24: -- | AB24: SI | AC24: 56.35305
C25: 31 | D25: 301911 | E25: 3955 | F25: VIRASORO | G25: TRAFO 1 | H25: 30 | I25: 132/33/13,2 | J25: 37.05 | K25: 2016-04-25T02:11:00 | L25: 2016-04-25T02:27:00 | M25: 0.2666666667 | N25: 16 | O25: F | P25: NO | Q25: 0,000 | R25: SI | S25: 60 | T25: -- | U25: -- | V25: 2223 | W25: 600.21 | X25: -- | Y25: -- | Z25: -- | AA25: -- | AB25: SI | AC25: 2823.21
C26: 32 | D26: 301930 | E26: 769 | F26: MTE. CASEROS | G26: TRAFO 1 | H26: 15 | I26: 132/33/13,2 | J26: 18.525 | K26: 2016-04-27T05:44:00 | L26: 2016-04-27T06:20:00 | M26: 0.6 | N26: 36 | O26: F | P26: NO | Q26: 0,000 | R26: SI | S26: 60 | T26: -- | U26: -- | V26: 1111.5 | W26: 666.9 | X26: -- | Y26: -- | Z26: -- | AA26: -- | AB26: SI | AC26: 1778.4
C27: 32a | D27: 301930 | E27: 769 | F27: MTE. CASEROS | G27: TRAFO 1 | H27: 15 | I27: 132/33/13,2 | J27: =H27*$I$16 -> 18.525 | K27: 2016-04-27T06:20:00 | L27: 2016-04-27T09:44:00 | M27: =IF(F27="","",(L27-K27)*24) -> 3.4 | N27: =IF(F27="","",ROUND((L27-K27)*24*60,0)) -> 204 | O27: RF | P27: =IF(F27="","",IF(OR(O27="P",O27="RP"),"--","NO")) -> NO | Q27: 0,000 | R27: NO | S27: =$I$17*IF(OR(O27="P",O27="RP"),0.1,1)*IF(R27="SI",1,0.1) -> 6 | T27: =IF(O27="P",J27*S27*ROUND(N27/60,2),"--") -> -- | U27: =IF(O27="RP",J27*S27*ROUND(N27/60,2)*Q27/100,"--") -> -- | V27: =IF(AND(O27="F",P27="NO"),J27*S27,"--") -> -- | W27: =IF(O27="F",J27*S27*ROUND(N27/60,2),"--") -> -- | X27: =IF(AND(O27="R",P27="NO"),J27*S27*Q27/100,"--") -> -- | Y27: =IF(O27="R",J27*S27*ROUND(N27/60,2)*Q27/100,"--") -> -- | Z27: =IF(O27="RF",J27*S27*ROUND(N27/60,2),"--") -> 377.91 | AA27: =IF(O27="RR",J27*S27*ROUND(N27/60,2)*Q27/100,"--") -> -- | AB27: SI | AC27: =IF(F27="","",SUM(T27:AA27)*IF(AB27="SI",1,2)) -> 377.91
C28: 33 | D28: 301936 | E28: 752 | F28: BARRANQUERAS | G28: TRAFO 7 | H28: 30 | I28: 132/33/13,2 | J28: 37.05 | K28: 2016-04-27T07:31:00 | L28: 2016-04-29T12:05:00 | M28: 52.56666667 | N28: 3154 | O28: P | P28: -- | Q28: 0,000 | R28: NO | S28: 0.6 | T28: 1168.6311 | U28: -- | V28: -- | W28: -- | X28: -- | Y28: -- | Z28: -- | AA28: -- | AB28: SI | AC28: 1168.6311
C29: 34 | D29: 301940 | E29: 764 | F29: FORMOSA | G29: TRAFO 3 | H29: 30 | I29: 132/33/13,2 | J29: 37.05 | K29: 2016-04-28T07:19:00 | L29: 2016-04-28T11:33:00 | M29: 4.233333333 | N29: 254 | O29: RP | P29: -- | Q29: 40 | R29: NO | S29: 0.6 | T29: -- | U29: 37.61316 | V29: -- | W29: -- | X29: -- | Y29: -- | Z29: -- | AA29: -- | AB29: SI | AC29: 37.61316
C30: 35 | D30: 301941 | E30: 1336 | F30: FORMOSA | G30: TRAFO 4 | H30: 30 | I30: 132/33/13.2 | J30: 37.05 | K30: 2016-04-29T07:24:00 | L30: 2016-04-29T11:48:00 | M30: 4.4 | N30: 264 | O30: RP | P30: -- | Q30: 40 | R30: NO | S30: 0.6 | T30: -- | U30: 39.1248 | V30: -- | W30: -- | X30: -- | Y30: -- | Z30: -- | AA30: -- | AB30: SI | AC30: 39.1248
C31: 36 | D31: 301942 | E31: 752 | F31: BARRANQUERAS | G31: TRAFO 7 | H31: 30 | I31: 132/33/13,2 | J31: 37.05 | K31: 2016-04-29T12:06:00 | L31: 2016-04-30T23:59:00 | M31: 35.88333333 | N31: 2153 | O31: RP | P31: -- | Q31: 50 | R31: NO | S31: 0.6 | T31: -- | U31: 398.8062 | V31: -- | W31: -- | X31: -- | Y31: -- | Z31: -- | AA31: -- | AB31: SI | AC31: 398.8062
C32: 37 | D32: 301388b | E32: 2662 | F32: BARRANQUERAS | G32: TRAFO 5 | H32: 15 | I32: 132/33/13,2 | J32: 18.525 | K32: 2016-04-13T12:30:00 | L32: 2016-04-13T16:00:00 | M32: 3.5 | N32: 210 | O32: R | P32: NO | Q32: 60 | R32: NO | S32: 6 | T32: -- | U32: -- | V32: -- | W32: -- | X32: 66.69 | Y32: 233.415 | Z32: -- | AA32: -- | AB32: =IF(F32="","","SI") -> SI | AC32: 300.105
C33: 38 | D33: 301930b | E33: 769 | F33: MTE. CASEROS | G33: TRAFO 1 | H33: 15 | I33: 132/33/13,2 | J33: 18.525 | K33: 2016-04-27T06:21:00 | L33: 2016-04-27T09:44:00 | M33: 3.383333333 | N33: 203 | O33: F | P33: NO | Q33: 0 | R33: NO | S33: 6 | T33: -- | U33: -- | V33: 111.15 | W33: 375.687 | X33: -- | Y33: -- | Z33: -- | AA33: -- | AB33: SI | AC33: 486.837
J34: 0 | S34: 6 | T34: -- | U34: -- | V34: -- | W34: -- | X34: -- | Y34: -- | Z34: -- | AA34: --
J35: 0 | S35: 6 | T35: -- | U35: -- | V35: -- | W35: -- | X35: -- | Y35: -- | Z35: -- | AA35: --
J36: 0 | S36: 6 | T36: -- | U36: -- | V36: -- | W36: -- | X36: -- | Y36: -- | Z36: -- | AA36: --
J37: 0 | S37: 6 | T37: -- | U37: -- | V37: -- | W37: -- | X37: -- | Y37: -- | Z37: -- | AA37: --
J38: 0 | P38: =IF(F38="","",IF(OR(O38="P",O38="RP"),"--","NO")) ->  | S38: 6 | T38: -- | U38: -- | V38: -- | W38: -- | X38: -- | Y38: -- | Z38: -- | AA38: --
J39: 0 | S39: 6 | T39: -- | U39: -- | V39: -- | W39: -- | X39: -- | Y39: -- | Z39: -- | AA39: -- | AB39: =IF(F39="","","SI") -> 
J40: =H40*$I$16 -> 0 | M40: =IF(F40="","",(L40-K40)*24) ->  | N40: =IF(F40="","",ROUND((L40-K40)*24*60,0)) ->  | S40: 6 | T40: -- | U40: -- | V40: -- | W40: -- | X40: -- | Y40: -- | Z40: -- | AA40: --
J41: =H41*$I$16 -> 0 | M41: =IF(F41="","",(L41-K41)*24) ->  | N41: =IF(F41="","",ROUND((L41-K41)*24*60,0)) ->  | S41: 6 | T41: -- | U41: -- | V41: -- | W41: -- | X41: -- | Y41: -- | Z41: -- | AA41: --
J42: =H42*$I$16 -> 0 | M42: =IF(F42="","",(L42-K42)*24) ->  | N42: =IF(F42="","",ROUND((L42-K42)*24*60,0)) ->  | S42: 6 | T42: -- | U42: -- | V42: -- | W42: -- | X42: -- | Y42: -- | Z42: -- | AA42: -- | AB42: =IF(F42="","","SI") -> 
C44: (²) | D44: F - FORZADA ; RP - REDUCCIÓN PROGRAMADA ; R - REDUCCIÓN FORZADA ; RF - RESTANTE FORZADA | T44: =SUM(T20:T43) -> 1224.98415 | U44: =SUM(U20:U43) -> 547.16922 | V44: 3445.65 | W44: 1642.797 | X44: 2289.69 | Y44: 389.025 | Z44: 377.91 | AA44: 0 | AC44: =ROUND(SUM(AC20:AC43),2) -> 51113.73

Sheet SA-04 (1)
B2: ='TOT-0416'!B2 -> ANEXO IV al Memorandum D.T.E.E. N° 294 /2017
A4: ENTE NACIONAL REGULADOR
A5: DE LA ELECTRICIDAD
F8: SISTEMA DE TRANSPORTE DE ENERGÍA ELÉCTRICA POR DISTRIBUCIÓN TRONCAL - TRANSNEA S.A.
F10: 2.2.- Salidas
B12: ='TOT-0416'!B14 -> Desde el 01 al 30 de abril de 2016
F14: Salida en 220 kV | G14: - | H14: =60*'TOT-0416'!B13 -> 120 | J14: =IF(H14=60," ",IF(H14=120," Coeficiente duplicado por tasa de falla >4 Sal. x año/100 km."," REVISAR COEFICIENTE")) -> Coeficiente duplicado por tasa de falla >4 Sal. x año/100 km.
F15: Salida en 132 kV = | G15: 16.043 | H15: =50*'TOT-0416'!B13 -> 100 | J15: =IF(H15=50," ",IF(H15=100," Coeficiente duplicado por tasa de falla >4 Sal. x año/100 km."," REVISAR COEFICIENTE")) -> Coeficiente duplicado por tasa de falla >4 Sal. x año/100 km.
F16: Salida en 33 kV | G16: 12.029 | H16: =25*'TOT-0416'!B13 -> 50 | J16: =IF(H16=25," ",IF(H16=50," Coeficiente duplicado por tasa de falla >4 Sal. x año/100 km."," REVISAR COEFICIENTE")) -> Coeficiente duplicado por tasa de falla >4 Sal. x año/100 km.
F17: Salida en 13,2 kV = | G17: 12.029 | H17: =20*'TOT-0416'!B13 -> 40 | J17: =IF(H17=20," ",IF(H17=40," Coeficiente duplicado por tasa de falla >4 Sal. x año/100 km."," REVISAR COEFICIENTE")) -> Coeficiente duplicado por tasa de falla >4 Sal. x año/100 km.
C18: 3 | D18: 4 | E18: 5 | F18: 6 | G18: 7 | H18: 8 | I18: 9 | J18: 10 | K18: 11 | L18: 12 | M18: 13 | N18: 14 | O18: 15 | P18: 16 | Q18: 17 | R18: 18 | S18: 19 | T18: 20 | U18: 21 | V18: 22
C19: N° | D19: INDISP | E19: ID EQUIPO | F19: ESTACIÓN TRANSFORMADORA | G19: EQUIPO | H19: U [kV] | I19: $/h | J19: Salida | K19: Entrada | L19: Hs. Indisp. | M19: Mtos. Indisp. | N19: Tipo Sal.(²) | O19: AUT. | P19: K | Q19: PENALIZ. PROGRAM. | R19: PENALIZACIÓN FORZADA Por Salida hs. Restantes | T19: RESTANTE FORZADA | U19: Informó enTérm. | V19: TOTAL PENALIZAC.
C22: 37 | D22: 301100 | E22: 855 | F22: SALTO GRANDE | G22: SALIDA LINEA CONCORDIA | H22: 132 | I22: =IF(H22=220,$G$14,IF(AND(H22<=132,H22>=66),$G$15,IF(AND(H22<66,H22>=33),$G$16,$G$17))) -> 16.043 | J22: 2016-04-10T07:42:00 | K22: 2016-04-10T15:17:00 | L22: =IF(F22="","",(K22-J22)*24) -> 7.583333333 | M22: =IF(F22="","",ROUND((K22-J22)*24*60,0)) -> 455 | N22: P | O22: =IF(F22="","",IF(OR(N22="P",N22="RP"),"--","NO")) -> -- | P22: =IF(H22=220,$H$14,IF(AND(H22<=132,H22>=66),$H$15,IF(AND(H22<66,H22>=33),$H$16,$H$17))) -> 100 | Q22: =IF(N22="P",I22*P22*ROUND(M22/60,2)*0.1,"--") -> 1216.0594 | R22: =IF(AND(N22="F",O22="NO"),I22*P22,"--") -> -- | S22: =IF(N22="F",I22*P22*ROUND(M22/60,2),"--") -> -- | T22: =IF(N22="RF",I22*P22*ROUND(M22/60,2),"--") -> -- | U22: SI | V22: =IF(F22="","",SUM(Q22:T22)*IF(U22="SI",1,2)*IF(H22="500/220",0,1)) -> 1216.0594
C23: 38 | D23: 301409 | E23: 848 | F23: STA. CATALINA | G23: SALIDA 17 DE AGOSTO | H23: 33 | I23: =IF(H23=220,$G$14,IF(AND(H23<=132,H23>=66),$G$15,IF(AND(H23<66,H23>=33),$G$16,$G$17))) -> 12.029 | J23: 2016-04-17T08:04:00 | K23: 2016-04-17T11:14:00 | L23: =IF(F23="","",(K23-J23)*24) -> 3.166666667 | M23: =IF(F23="","",ROUND((K23-J23)*24*60,0)) -> 190 | N23: P | O23: -- | P23: =IF(H23=220,$H$14,IF(AND(H23<=132,H23>=66),$H$15,IF(AND(H23<66,H23>=33),$H$16,$H$17))) -> 50 | Q23: =IF(N23="P",I23*P23*ROUND(M23/60,2)*0.1,"--") -> 190.65965 | R23: =IF(AND(N23="F",O23="NO"),I23*P23,"--") -> -- | S23: =IF(N23="F",I23*P23*ROUND(M23/60,2),"--") -> -- | T23: =IF(N23="RF",I23*P23*ROUND(M23/60,2),"--") -> -- | U23: SI | V23: =IF(F23="","",SUM(Q23:T23)*IF(U23="SI",1,2)*IF(H23="500/220",0,1)) -> 190.65965
C24: 39 | D24: 301937 | E24: 828 | F24: GOYA | G24: SALIDA CENTRAL GOYA | H24: 33 | I24: 12.029 | J24: 2016-04-27T14:24:00 | K24: 2016-04-27T14:59:00 | L24: 0.5833333333 | M24: 35 | N24: F | O24: SI | P24: 50 | Q24: -- | R24: -- | S24: 348.841 | T24: -- | U24: =IF(F24="","","SI") -> SI | V24: 348.841
C25: 40 | D25: 301938 | E25: 5174 | F25: GOYA | G25: SALIDA ALIM. LAVALLE | H25: 33 | I25: 12.029 | J25: 2016-04-27T14:24:00 | K25: 2016-04-27T14:59:00 | L25: 0.5833333333 | M25: 35 | N25: F | O25: SI | P25: 50 | Q25: -- | R25: -- | S25: 348.841 | T25: -- | U25: SI | V25: 348.841
C26: 41 | D26: 301939 | E26: 5175 | F26: GOYA | G26: SALIDA ALIM. SANTA LUCIA | H26: 33 | I26: 12.029 | J26: 2016-04-27T14:24:00 | K26: 2016-04-27T14:59:00 | L26: 0.5833333333 | M26: 35 | N26: F | O26: SI | P26: 50 | Q26: -- | R26: -- | S26: 348.841 | T26: -- | U26: SI | V26: 348.841
I27: 12.029 | P27: 40 | Q27: -- | R27: -- | S27: -- | T27: --
I28: 12.029 | P28: 40 | Q28: -- | R28: -- | S28: -- | T28: --
I29: 12.029 | P29: 40 | Q29: -- | R29: -- | S29: -- | T29: --
I30: 12.029 | P30: 40 | Q30: -- | R30: -- | S30: -- | T30: --
I31: 12.029 | P31: 40 | Q31: -- | R31: -- | S31: -- | T31: --
I32: 12.029 | P32: 40 | Q32: -- | R32: -- | S32: -- | T32: --
I33: 12.029 | P33: 40 | Q33: -- | R33: -- | S33: -- | T33: --
I34: 12.029 | P34: 40 | Q34: -- | R34: -- | S34: -- | T34: --
I35: 12.029 | P35: 40 | Q35: -- | R35: -- | S35: -- | T35: --
I36: 12.029 | P36: 40 | Q36: -- | R36: -- | S36: -- | T36: --
I37: 12.029 | P37: 40 | Q37: -- | R37: -- | S37: -- | T37: --
I38: 12.029 | P38: 40 | Q38: -- | R38: -- | S38: -- | T38: --
I39: =IF(H39=220,$G$14,IF(AND(H39<=132,H39>=66),$G$15,IF(AND(H39<66,H39>=33),$G$16,$G$17))) -> 12.029 | L39: =IF(F39="","",(K39-J39)*24) ->  | M39: =IF(F39="","",ROUND((K39-J39)*24*60,0)) ->  | P39: =IF(H39=220,$H$14,IF(AND(H39<=132,H39>=66),$H$15,IF(AND(H39<66,H39>=33),$H$16,$H$17))) -> 40 | Q39: =IF(N39="P",I39*P39*ROUND(M39/60,2)*0.1,"--") -> -- | R39: =IF(AND(N39="F",O39="NO"),I39*P39,"--") -> -- | S39: =IF(N39="F",I39*P39*ROUND(M39/60,2),"--") -> -- | T39: =IF(N39="RF",I39*P39*ROUND(M39/60,2),"--") -> -- | U39: =IF(F39="","","SI") -> 
I40: =IF(H40=220,$G$14,IF(AND(H40<=132,H40>=66),$G$15,IF(AND(H40<66,H40>=33),$G$16,$G$17))) -> 12.029 | L40: =IF(F40="","",(K40-J40)*24) ->  | M40: =IF(F40="","",ROUND((K40-J40)*24*60,0)) ->  | P40: =IF(H40=220,$H$14,IF(AND(H40<=132,H40>=66),$H$15,IF(AND(H40<66,H40>=33),$H$16,$H$17))) -> 40 | Q40: =IF(N40="P",I40*P40*ROUND(M40/60,2)*0.1,"--") -> -- | R40: =IF(AND(N40="F",O40="NO"),I40*P40,"--") -> -- | S40: =IF(N40="F",I40*P40*ROUND(M40/60,2),"--") -> -- | T40: =IF(N40="RF",I40*P40*ROUND(M40/60,2),"--") -> -- | U40: =IF(F40="","","SI") -> 
I41: =IF(H41=220,$G$14,IF(AND(H41<=132,H41>=66),$G$15,IF(AND(H41<66,H41>=33),$G$16,$G$17))) -> 12.029 | L41: =IF(F41="","",(K41-J41)*24) ->  | M41: =IF(F41="","",ROUND((K41-J41)*24*60,0)) ->  | P41: =IF(H41=220,$H$14,IF(AND(H41<=132,H41>=66),$H$15,IF(AND(H41<66,H41>=33),$H$16,$H$17))) -> 40 | Q41: =IF(N41="P",I41*P41*ROUND(M41/60,2)*0.1,"--") -> -- | R41: =IF(AND(N41="F",O41="NO"),I41*P41,"--") -> -- | S41: =IF(N41="F",I41*P41*ROUND(M41/60,2),"--") -> -- | T41: =IF(N41="RF",I41*P41*ROUND(M41/60,2),"--") -> -- | U41: =IF(F41="","","SI") -> 
C43: (²) | D43: F - FORZADA | Q43: =SUM(Q20:Q42) -> 1406.71905 | R43: =SUM(R20:R42) -> 0 | S43: =SUM(S20:S42) -> 1046.523 | T43: =SUM(T20:T42) -> 0 | V43: =ROUND(SUM(V20:V42),2) -> 2453.24

Sheet SUP-DPEC
B2: ='TOT-0416'!B2 -> ANEXO IV al Memorandum D.T.E.E. N° 294 /2017
A4: ENTE NACIONAL REGULADOR
A5: DE LA ELECTRICIDAD
D8: SISTEMA DE TRANSPORTE DE ENERGÍA ELÉCTRICA POR DISTRIBUCIÓN TRONCAL - TRANSNEA S.A.
D10: 3.1.-SUPERVISIÓN - Transportista Independiente D.P.E.C.
B12: ='TOT-0416'!B14 -> Desde el 01 al 30 de abril de 2016
C16: a) Datos
K17: K
D18: Tiempo de servicio = | E18: =MID(B12,16,2)*24 -> 720 | F18: hs | H18: $/100 km-h : LÍNEAS 220 kV | J18: - | K18: =30*'TOT-0416'!B13 -> 60
D19: Porcentaje por Supervisión = | E19: 0.025 | H19: $/100 km-h : LÍNEAS 132 kV | J19: 345.493 | M19: RM por Transformador = | Y19: - | Z19: $/h-MVA
H20: $/100 km-h : LÍNEAS 66 kV | J20: - | M20: RM Salidas 132 kV = | Y20: 16.043 | Z20: $/hs.
C22: b) SM: es la suma de las sanciones a que en cada mes se hiciere pasible el Transportista Independiente, valorizadas con idénticos criterios que los que se aplican a la Concesionaria.
C24: N° | D24: LÍNEAS | E24: U [kV] | F24: Long. [km] | G24: $/h | H24: Salida | I24: Entrada | J24: Hs. Indisp. | K24: Minutos Indisp. | L24: Tipo Sal.(²) | M24: C.R. % | N24: PENALIZAC. PROGRAM. | O24: REDUCC. PROGRAM. | P24: PENALIZACIÓN FORZADA Por Salida 1ras. 3 hs. hs. Restantes | S24: REDUCC. FORZADA Por Salida 1ras. 3 hs. hs. Restantes | V24: RESTANTE FORZADA | W24: REDUCC. RESTANTE | X24: Informó enTérm. | Y24: TOTAL PENALIZAC.
C26: I | D26: PASO DE LOS LIBRES - MONTE CASEROS | E26: 132 | F26: 101 | G26: =IF(F26>25,F26,25)*IF(E26=220,$J$18,IF(E26=132,$J$19,$J$20))/100 -> 348.94793 | H26: 2016-04-06T21:16:00 | I26: 2016-04-06T21:21:00 | J26: =IF(D26="","",(I26-H26)*24) -> 0.08333333326 | K26: =IF(D26="","",ROUND((I26-H26)*24*60,0)) -> 5 | L26: F | M26: =IF(D26="","","--") -> -- | N26: =IF(L26="P",ROUND(K26/60,2)*G26*$K$18*0.01,"--") -> -- | O26: =IF(L26="RP",ROUND(K26/60,2)*G26*$K$18*0.01*M26/100,"--") -> -- | P26: =IF(L26="F",G26*$K$18,"--") -> 20936.8758 | Q26: =IF(AND(K26>10,L26="F"),G26*$K$18*IF(K26>180,3,ROUND(K26/60,2)),"--") -> -- | R26: =IF(AND(L26="F",K26>180),(ROUND(K26/60,2)-3)*G26*$K$18*0.1,"--") -> -- | S26: =IF(L26="R",G26*$K$18*M26/100,"--") -> -- | T26: =IF(AND(K26>10,L26="R"),G26*$K$18*M26/100*IF(K26>180,3,ROUND(K26/60,2)),"--") -> -- | U26: =IF(AND(L26="R",K26>180),(ROUND(K26/60,2)-3)*G26*$K$18*0.1*M26/100,"--") -> -- | V26: =IF(L26="RF",ROUND(K26/60,2)*G26*$K$18*0.1,"--") -> -- | W26: =IF(L26="RR",ROUND(K26/60,2)*G26*$K$18*0.1*M26/100,"--") -> -- | X26: SI | Y26: =IF(D26="","",SUM(N26:W26)*IF(X26="SI",1,2)) -> 20936.8758
C27: II | D27: PASO DE LOS LIBRES - MONTE CASEROS | E27: 132 | F27: 101 | G27: =IF(F27>25,F27,25)*IF(E27=220,$J$18,IF(E27=132,$J$19,$J$20))/100 -> 348.94793 | H27: 2016-04-13T05:20:00 | I27: 2016-04-13T05:27:00 | J27: =IF(D27="","",(I27-H27)*24) -> 0.1166666667 | K27: =IF(D27="","",ROUND((I27-H27)*24*60,0)) -> 7 | L27: F | M27: =IF(D27="","","--") -> -- | N27: =IF(L27="P",ROUND(K27/60,2)*G27*$K$18*0.01,"--") -> -- | O27: =IF(L27="RP",ROUND(K27/60,2)*G27*$K$18*0.01*M27/100,"--") -> -- | P27: =IF(L27="F",G27*$K$18,"--") -> 20936.8758 | Q27: =IF(AND(K27>10,L27="F"),G27*$K$18*IF(K27>180,3,ROUND(K27/60,2)),"--") -> -- | R27: =IF(AND(L27="F",K27>180),(ROUND(K27/60,2)-3)*G27*$K$18*0.1,"--") -> -- | S27: =IF(L27="R",G27*$K$18*M27/100,"--") -> -- | T27: =IF(AND(K27>10,L27="R"),G27*$K$18*M27/100*IF(K27>180,3,ROUND(K27/60,2)),"--") -> -- | U27: =IF(AND(L27="R",K27>180),(ROUND(K27/60,2)-3)*G27*$K$18*0.1*M27/100,"--") -> -- | V27: =IF(L27="RF",ROUND(K27/60,2)*G27*$K$18*0.1,"--") -> -- | W27: =IF(L27="RR",ROUND(K27/60,2)*G27*$K$18*0.1*M27/100,"--") -> -- | X27: =IF(D27="","","SI") -> SI | Y27: =IF(D27="","",SUM(N27:W27)*IF(X27="SI",1,2)) -> 20936.8758
C28: III | G28: =IF(F28>25,F28,25)*IF(E28=220,$J$18,IF(E28=132,$J$19,$J$20))/100 ->  | J28: =IF(D28="","",(I28-H28)*24) ->  | K28: =IF(D28="","",ROUND((I28-H28)*24*60,0)) ->  | M28: =IF(D28="","","--") ->  | N28: =IF(L28="P",ROUND(K28/60,2)*G28*$K$18*0.01,"--") -> -- | O28: =IF(L28="RP",ROUND(K28/60,2)*G28*$K$18*0.01*M28/100,"--") -> -- | P28: =IF(L28="F",G28*$K$18,"--") -> -- | Q28: =IF(AND(K28>10,L28="F"),G28*$K$18*IF(K28>180,3,ROUND(K28/60,2)),"--") -> -- | R28: =IF(AND(L28="F",K28>180),(ROUND(K28/60,2)-3)*G28*$K$18*0.1,"--") -> -- | S28: =IF(L28="R",G28*$K$18*M28/100,"--") -> -- | T28: =IF(AND(K28>10,L28="R"),G28*$K$18*M28/100*IF(K28>180,3,ROUND(K28/60,2)),"--") -> -- | U28: =IF(AND(L28="R",K28>180),(ROUND(K28/60,2)-3)*G28*$K$18*0.1*M28/100,"--") -> -- | V28: =IF(L28="RF",ROUND(K28/60,2)*G28*$K$18*0.1,"--") -> -- | W28: =IF(L28="RR",ROUND(K28/60,2)*G28*$K$18*0.1*M28/100,"--") -> -- | X28: =IF(D28="","","SI") ->  | Y28: =IF(D28="","",SUM(N28:W28)*IF(X28="SI",1,2)) -> 
J29: =IF(D29="","",(I29-H29)*24) ->  | K29: =IF(D29="","",ROUND((I29-H29)*24*60,0)) ->  | M29: =IF(D29="","","--") ->  | X29: =IF(D29="","","SI") ->  | Y29: =IF(D29="","",SUM(N29:W29)*IF(X29="SI",1,2)) -> 
Y30: =SUM(Y26:Y29) -> 41873.7516
C32: N° | D32: ESTACIÓN TRANSFORMADORA | E32: EQUIPO | F32: U [kV] | G32: $/h | H32: Salida | I32: Entrada | J32: Hs. Indisp. | K32: Mtos. Indisp. | L32: Tipo Sal.(²) | M32: AUT. | N32: K | O32: PENALIZ. PROGRAM. | P32: PENALIZACIÓN FORZADA Por Salida hs. Restantes | V32: RESTANTE FORZADA | X32: Informó enTérm. | Y32: TOTAL PENALIZAC.
C34: I | G34: =Y20 -> 16.043 | J34: =IF(D34="","",(I34-H34)*24) ->  | K34: =IF(D34="","",ROUND((I34-H34)*24*60,0)) ->  | M34: =IF(D34="","",IF(OR(L34="P",L34="RP"),"--","NO")) ->  | N34: 50 | O34: =IF(L34="P",G34*N34*ROUND(K34/60,2)*0.1,"--") -> -- | P34: =IF(AND(L34="F",M34="NO"),G34*N34,"--") -> -- | Q34: =IF(L34="F",G34*N34*ROUND(K34/60,2),"--") -> -- | V34: =IF(L34="RF",G34*N34*ROUND(K34/60,2),"--") -> -- | X34: =IF(D34="","","SI") ->  | Y34: =IF(D34="","",SUM(O34:V34)*IF(X34="SI",1,2)*IF(F34="500/220",0,1)) -> 
C35: II | G35: =Y20 -> 16.043 | J35: =IF(D35="","",(I35-H35)*24) ->  | K35: =IF(D35="","",ROUND((I35-H35)*24*60,0)) ->  | M35: =IF(D35="","",IF(OR(L35="P",L35="RP"),"--","NO")) ->  | N35: 50 | O35: =IF(L35="P",G35*N35*ROUND(K35/60,2)*0.1,"--") -> -- | P35: =IF(AND(L35="F",M35="NO"),G35*N35,"--") -> -- | Q35: =IF(L35="F",G35*N35*ROUND(K35/60,2),"--") -> -- | V35: =IF(L35="RF",G35*N35*ROUND(K35/60,2),"--") -> -- | X35: =IF(D35="","","SI") ->  | Y35: =IF(D35="","",SUM(O35:V35)*IF(X35="SI",1,2)*IF(F35="500/220",0,1)) -> 
C36: III | G36: =Y20 -> 16.043 | J36: =IF(D36="","",(I36-H36)*24) ->  | K36: =IF(D36="","",ROUND((I36-H36)*24*60,0)) ->  | M36: =IF(D36="","",IF(OR(L36="P",L36="RP"),"--","NO")) ->  | N36: 50 | O36: =IF(L36="P",G36*N36*ROUND(K36/60,2)*0.1,"--") -> -- | P36: =IF(AND(L36="F",M36="NO"),G36*N36,"--") -> -- | Q36: =IF(L36="F",G36*N36*ROUND(K36/60,2),"--") -> -- | V36: =IF(L36="RF",G36*N36*ROUND(K36/60,2),"--") -> -- | X36: =IF(D36="","","SI") ->  | Y36: =IF(D36="","",SUM(O36:V36)*IF(X36="SI",1,2)*IF(F36="500/220",0,1)) -> 
Y38: =SUM(Y34:Y37) -> 0
H39: SM= | I39: =Y30+Y38 -> 41873.7516
C41: c) RM : es la remuneración que mensualmente recibiría el Transportista Independiente, si su servicio fuera valorizado conforme al régimen remuneratorio que se aplica a la Concesionaria.
D43: Cargo por Capacidad | E43: kV | F43: km | I43: RM por Cap. Transporte | K43: RM por E. E. T. | X43: TOTAL
D45: PASO DE LOS LIBRES - MONTE CASEROS | E45: 132 | F45: 100.7 | I45: =F45*$J$19*$E$18/100 -> 250496.2447 | K45: 27938 | M45: ="(DTE "&DATO!$G$14&DATO!$H$14&")" -> (DTE 0416) | X45: =I45+I49 -> 262047.2047
D47: E.T. | E47: kV | F47: SALIDA | G47: SALIDA | I47: RM por Conexión
D49: PASO DE LOS LIBRES | E49: 132 | F49: INTERRUPTOR TRAFO 1 | I49: =Y20*E18 -> 11550.96
H52: RM = | I52: =X45+I49 -> 273598.1647 | M52: RM * = | X52: 114908.4209
C54: d) CS: Es el cargo por Supervisión de la Operación que la Transportista percibe por supervisar la operación y mantenimiento del Transportista Independiente.
D56: Cargo por Supervisión afectado a la sanción | H56: CS = | I56: =E19*X52 -> 2872.710522 | L56: RM* = VALOR EMPLEADO PARA CALCULAR CS
C58: e) SANCIÓN
D59: Sanción Calculada | E59: =10*Y30*I56/I52 -> 4396.636466
D61: TOTAL A PENALIZAR A TRANSNEA S.A. POR SUPERVISIÓN A D.P.E.C.
H63: SANCIÓN = | I63: =IF(E59>3*I56,3*I56,$E$59) -> 4396.636466

Sheet SUP-ENECOR
B2: ='TOT-0416'!B2 -> ANEXO IV al Memorandum D.T.E.E. N° 294 /2017
A4: ENTE NACIONAL REGULADOR
A5: DE LA ELECTRICIDAD
D8: SISTEMA DE TRANSPORTE DE ENERGÍA ELÉCTRICA POR DISTRIBUCIÓN TRONCAL - TRANSNEA S.A.
D10: 3.2.-SUPERVISIÓN - Transportista Independiente E.N.E.C.O.R. S.A.
B12: ='TOT-0416'!B14 -> Desde el 01 al 30 de abril de 2016
C16: a) Datos
D18: Tiempo de servicio = | E18: =MID(B12,16,2)*24 -> 720 | F18: hs | I18: $/100 km-h : LÍNEAS 220 kV | J18: -
D19: Porcentaje por Supervisión = | E19: 0.025 | I19: $/100 km-h : LÍNEAS 132 kV | J19: 345.493
C21: b) SM: es la suma de las sanciones a que en cada mes se hiciere pasible el Transportista Independiente, valorizadas con idénticos criterios que los que se aplican a la Concesionaria.
D23: SEGÚN 1.3. | H23: SM = | I23: 3420.38
C25: c) RM : es la remuneración que mensualmente recibiría el Transportista Independiente, si su servicio fuera valorizado conforme al régimen remuneratorio que se aplica a la Concesionaria.
D27: Cargo por Capacidad | E27: kV | F27: km | I27: RM por Cap. Transporte | K27: RM por E. E. T. | T27: TOTAL
D29: PASO DE LA PATRIA - STA. CATALINA 1 | E29: 132 | F29: 20.8 | I29: =F29*$J$19*$E$18/100 -> 51741.03168 | K29: 73359 | M29: ="(DTE "&[4]DATO!$G$14&[4]DATO!$H$14&")" -> (DTE 0416) | T29: =SUM(I29:K29) -> 125100.0317
D30: PASO DE LA PATRIA - STA. CATALINA 2 | E30: 132 | F30: 20.8 | I30: =F30*$J$19*$E$18/100 -> 51741.03168 | K30: 0 | M30: ="(DTE "&[4]DATO!$G$14&[4]DATO!$H$14&")" -> (DTE 0416) | T30: =SUM(I30:K30) -> 51741.03168
H33: RM = | I33: =SUM(T29:T30) -> 176841.0634 | L33: RM *= | M33: 107121.4934
C35: d) CS: Es el cargo por Supervisión de la Operación que la Transportista percibe por supervisar la operación y mantenimiento del Transportista Independiente.
D37: Cargo por Supervisión afectado a la sanción | H37: CS = | I37: =E19*M33 -> 2678.037336
N38: hs
C39: e) SANCIÓN
D40: Sanción Calculada | E40: =10*I23*I37/I33 -> 517.9738896
D42: TOTAL A PENALIZAR A TRANSNEA S.A. POR SUPERVISIÓN A E.N.E.C.O.R. S.A.
H44: SANCIÓN = | I44: =IF(E40>3*I37,3*I37,$E$40) -> 517.9738896 | L44: RM * = VALOR EMPLEADO PARA CALCULAR CS

Sheet DATO
A1: Mes | B1: Mes | C1: Dia | D1: Año
A2: enero | B2: 01 | C2: 31 | D2: 2006
A3: febrero | B3: 02 | C3: =IF(MOD(E14,4)=0,29,28) -> 29 | D3: =+D2+1 -> 2007
A4: marzo | B4: 03 | C4: 31 | D4: =+D3+1 -> 2008
A5: abril | B5: 04 | C5: 30 | D5: =+D4+1 -> 2009
A6: mayo | B6: 05 | C6: 31 | D6: 2010
A7: junio | B7: 06 | C7: 30 | D7: 2011
A8: julio | B8: 07 | C8: 31 | D8: 2012
A9: agosto | B9: 08 | C9: 31 | D9: 2013
A10: septiembre | B10: 09 | C10: 30 | D10: 2014
A11: octubre | B11: 10 | C11: 31 | D11: 2015
A12: noviembre | B12: 11 | C12: 30 | D12: 2016
A13: diciembre | B13: 12 | C13: 31 | I13: Total
A14: 11 | B14: 4 | C14: =CELL("CONTENIDO",OFFSET(A1,B14,0)) -> abril | D14: =CELL("CONTENIDO",OFFSET(C1,B14,0)) -> 30 | E14: =CELL("CONTENIDO",OFFSET(D1,A14,0)) -> 2016 | F14: ="Desde el 01 al " & D14 & " de " & C14 & " de " & E14 -> Desde el 01 al 30 de abril de 2016 | G14: =CELL("CONTENIDO",OFFSET(B1,B14,0)) -> 04 | H14: =RIGHT(E14,2) -> 16 | I14: B14
B15: ="\\rugor\files\Transporte\Transporte\AA PROCESO AUT ARCHIVOS J\TRANSNEA\" &E14 -> \\rugor\files\Transporte\Transporte\AA PROCESO AUT ARCHIVOS J\TRANSNEA\2016 | G15: ="J"&G14&H14&"NEA" -> J0416NEA
B16: ="\\rugor\files\Transporte\transporte\AA PROCESO AUT\INTERCAMBIO\" &H14&G14 -> \\rugor\files\Transporte\transporte\AA PROCESO AUT\INTERCAMBIO\1604
A17: Hoja | B17: FilaInicio | C17: FilasPlantilla | D17: Columnas | E17: NombreHoja | F17: OrigenDeDatos | G17: Col00 | H17: Col01 | I17: Col02 | J17: Col03 | K17: Col04 | L17: Col05 | M17: Col06 | N17: Col07 | O17: Col08 | P17: Col09 | Q17: Col10 | R17: Col11 | S17: Col12 | T17: Col13 | U17: Col14 | V17: Col15 | W17: FILHTOTAL | X17: COLHTOTAL | Y17: FILHCALC | Z17: COLHCALC | AA17: FILTRANSP | AB17: COLTRANSP | AC17: COL TSAL
A18: MODELO L | B18: 23 | C18: 20 | D18: 11 | E18: ="LI-" & $G$14 -> LI-04 | F18: TRANSNEA_INDISPONIBILIDADES_LINEAS_TRANSNEA.XLS | G18: 3 | H18: 5 | I18: 4 | J18: 6 | K18: 7 | L18: 8 | M18: 0 | N18: 10 | O18: 11 | P18: 14 | Q18: 0 | R18: 26 | S18: 0 | T18: 0 | U18: 0 | V18: 0 | W18: 20 | X18: 9 | Y18: 44 | Z18: 27 | AA18: 21 | AB18: 27 | AC18: 14
A19: MODELO T | B19: 22 | C19: 20 | D19: 13 | E19: ="T-" & $G$14 -> T-04 | F19: TRANSNEA_INDISPONIBILIDADES_TRAFOS_TRANSNEA.XLS | G19: 3 | H19: 5 | I19: 4 | J19: 6 | K19: 7 | L19: 8 | M19: 9 | N19: 11 | O19: 12 | P19: 15 | Q19: 16 | R19: 18 | S19: 28 | T19: 17 | U19: 0 | V19: 0 | W19: 28 | X19: 9 | Y19: 43 | Z19: 29 | AA19: 20 | AB19: 29 | AC19: 15
A20: MODELO S | B20: 22 | C20: 20 | D20: 10 | E20: ="SA-" & $G$14 -> SA-04 | F20: TRANSNEA_INDISPONIBILIDADES_SALIDAS_TRANSNEA.XLS | G20: 3 | H20: 5 | I20: 4 | J20: 6 | K20: 7 | L20: 8 | M20: 10 | N20: 11 | O20: 14 | P20: 15 | Q20: 21 | R20: 0 | S20: 0 | T20: 0 | U20: 0 | V20: 0 | W20: 32 | X20: 9 | Y20: 43 | Z20: 22 | AA20: 20 | AB20: 22 | AC20: 14
A21: MODELO L DPEC | B21: 23 | C21: 20 | D21: 11 | E21: ="LI-DPEC-" & $G$14 -> LI-DPEC-04 | F21: TRANSNEA_INDISPONIBILIDADES_LINEAS_DPEC.XLS | G21: 3 | H21: 5 | I21: 4 | J21: 6 | K21: 7 | L21: 8 | M21: 0 | N21: 10 | O21: 11 | P21: 14 | Q21: 0 | R21: 26 | S21: 0 | T21: 0 | U21: 0 | V21: 0 | W21: 21 | X21: 9 | Y21: 44 | Z21: 27 | AA21: 21 | AB21: 27 | AC21: 14
A22: MODELO L ENECOR | B22: 23 | C22: 20 | D22: 11 | E22: ="LI-ENECOR-" & $G$14 -> LI-ENECOR-04 | F22: TRANSNEA_INDISPONIBILIDADES_LINEAS_ENECOR.XLS | G22: 3 | H22: 5 | I22: 4 | J22: 6 | K22: 7 | L22: 8 | M22: 0 | N22: 10 | O22: 11 | P22: 14 | Q22: 0 | R22: 26 | S22: 0 | T22: 0 | U22: 0 | V22: 0 | W22: 22 | X22: 9 | Y22: 44 | Z22: 27 | AA22: 21 | AB22: 27 | AC22: 14
A23: MODELO L ELING | B23: 25 | C23: 20 | D23: 11 | E23: ="LI-ELECT-" & $G$14 -> LI-ELECT-04 | F23: TRANSNEA_INDISPONIBILIDADES_LINEAS_ELECTROINGENIERIA.XLS | G23: 3 | H23: 5 | I23: 4 | J23: 6 | K23: 7 | L23: 8 | M23: 0 | N23: 10 | O23: 11 | P23: 14 | Q23: 0 | R23: 26 | S23: 0 | T23: 0 | U23: 0 | V23: 0 | W23: 23 | X23: 9 | Y23: 44 | Z23: 27 | AA23: 21 | AB23: 27 | AC23: 14
A24: MODELO T ELING | B24: 22 | C24: 20 | D24: 13 | E24: ="T-ELECT-" & $G$14 -> T-ELECT-04 | F24: TRANSNEA_INDISPONIBILIDADES_TRAFOS_ELECTROINGENIERIA.XLS | G24: 3 | H24: 5 | I24: 4 | J24: 6 | K24: 7 | L24: 8 | M24: 9 | N24: 11 | O24: 12 | P24: 15 | Q24: 16 | R24: 18 | S24: 28 | T24: 17 | U24: 0 | V24: 0 | W24: 29 | X24: 9 | Y24: 43 | Z24: 29 | AA24: 20 | AB24: 29 | AC24: 15
A25: MODELO S ELING | B25: 22 | C25: 20 | D25: 10 | E25: ="SA-ELECT-" & $G$14 -> SA-ELECT-04 | F25: TRANSNEA_INDISPONIBILIDADES_SALIDAS_ELECTROINGENIERIA.XLS | G25: 3 | H25: 5 | I25: 4 | J25: 6 | K25: 7 | L25: 8 | M25: 10 | N25: 11 | O25: 14 | P25: 15 | Q25: 21 | R25: 0 | S25: 0 | T25: 0 | U25: 0 | V25: 0 | W25: 33 | X25: 9 | Y25: 43 | Z25: 22 | AA25: 20 | AB25: 22 | AC25: 14
A26: SUP-DPEC | B26: 26 | C26: 25 | D26: 11 | E26: SUP-DPEC | F26: TRANSNEA_INDISPONIBILIDADES_LINEAS_DPEC.XLS | G26: 0 | H26: 0 | I26: 0 | J26: 4 | K26: 5 | L26: 6 | M26: 0 | N26: 8 | O26: 9 | P26: 12 | Q26: 0 | R26: 24 | S26: 0 | T26: 0 | U26: 0 | V26: 0 | W26: 0 | X26: 0 | Y26: 0 | Z26: 0 | AA26: 0 | AB26: 0 | AC26: 0
A27: MODELO VST | B27: 19 | C27: 24 | D27: 4 | E27: ="CAUSAS-VST-" & $G$14 -> CAUSAS-VST-04 | F27: TRANSNEA_CAUSAS_VST.XLS | G27: 3 | H27: 4 | I27: 5 | J27: 6 | K27: 7 | L27: 0 | M27: 0 | N27: 0 | O27: 0 | P27: 0 | Q27: 0 | R27: 0 | S27: 0 | T27: 0 | U27: 0 | V27: 0 | W27: 999 | X27: 999 | Y27: 0 | Z27: 0 | AA27: 0 | AB27: 0 | AC27: 0
